{"text_format":"3","workbook":"xlsx","n_sheets":1,"sheets":["Годишен календар"],"not_rendered":{"images":4,"defined_names":14},"read":"whole","date_system":"1900"}

{"sheet":"Годишен календар","index":0,"n_rows":55,"n_cols":21,"rows_kept":55,"merged":[[0,2,0,5]]}
[null,null,{"$f":"YEAR(TODAY())","v":2019},{"$nulls":17},"ВАЖНИ ДАТИ"]
[]
[null,null,"ЯНУАРИ",{"$nulls":7},"ФЕВРУАРИ",{"$nulls":9},"ЯНУАРИ 1"]
[null,null,"П","В","С","Ч","П","С","Н",null,"П","В","С","Ч","П","С","Н",{"$nulls":3},"НОВА ГОДИНА"]
[null,null,{"$f":"IF(DAY(ЯнуНед1)=1,\"\",IF(AND(YEAR(ЯнуНед1+1)=CalendarYear,MONTH(ЯнуНед1+1)=1),ЯнуНед1+1,\"\"))","v":""},{"$f":"IF(DAY(ЯнуНед1)=1,\"\",IF(AND(YEAR(ЯнуНед1+2)=CalendarYear,MONTH(ЯнуНед1+2)=1),ЯнуНед1+2,\"\"))","v":"2019-01-01"},{"$f":"IF(DAY(ЯнуНед1)=1,\"\",IF(AND(YEAR(ЯнуНед1+3)=CalendarYear,MONTH(ЯнуНед1+3)=1),ЯнуНед1+3,\"\"))","v":"2019-01-02"},{"$f":"IF(DAY(ЯнуНед1)=1,\"\",IF(AND(YEAR(ЯнуНед1+4)=CalendarYear,MONTH(ЯнуНед1+4)=1),ЯнуНед1+4,\"\"))","v":"2019-01-03"},{"$f":"IF(DAY(ЯнуНед1)=1,\"\",IF(AND(YEAR(ЯнуНед1+5)=CalendarYear,MONTH(ЯнуНед1+5)=1),ЯнуНед1+5,\"\"))","v":"2019-01-04"},{"$f":"IF(DAY(ЯнуНед1)=1,\"\",IF(AND(YEAR(ЯнуНед1+6)=CalendarYear,MONTH(ЯнуНед1+6)=1),ЯнуНед1+6,\"\"))","v":"2019-01-05"},{"$f":"IF(DAY(ЯнуНед1)=1,IF(AND(YEAR(ЯнуНед1)=CalendarYear,MONTH(ЯнуНед1)=1),ЯнуНед1,\"\"),IF(AND(YEAR(ЯнуНед1+7)=CalendarYear,MONTH(ЯнуНед1+7)=1),ЯнуНед1+7,\"\"))","v":"2019-01-06"},null,{"$f":"IF(DAY(ФевНед1)=1,\"\",IF(AND(YEAR(ФевНед1+1)=CalendarYear,MONTH(ФевНед1+1)=2),ФевНед1+1,\"\"))","v":""},{"$f":"IF(DAY(ФевНед1)=1,\"\",IF(AND(YEAR(ФевНед1+2)=CalendarYear,MONTH(ФевНед1+2)=2),ФевНед1+2,\"\"))","v":""},{"$f":"IF(DAY(ФевНед1)=1,\"\",IF(AND(YEAR(ФевНед1+3)=CalendarYear,MONTH(ФевНед1+3)=2),ФевНед1+3,\"\"))","v":""},{"$f":"IF(DAY(ФевНед1)=1,\"\",IF(AND(YEAR(ФевНед1+4)=CalendarYear,MONTH(ФевНед1+4)=2),ФевНед1+4,\"\"))","v":""},{"$f":"IF(DAY(ФевНед1)=1,\"\",IF(AND(YEAR(ФевНед1+5)=CalendarYear,MONTH(ФевНед1+5)=2),ФевНед1+5,\"\"))","v":"2019-02-01"},{"$f":"IF(DAY(ФевНед1)=1,\"\",IF(AND(YEAR(ФевНед1+6)=CalendarYear,MONTH(ФевНед1+6)=2),ФевНед1+6,\"\"))","v":"2019-02-02"},{"$f":"IF(DAY(ФевНед1)=1,IF(AND(YEAR(ФевНед1)=CalendarYear,MONTH(ФевНед1)=2),ФевНед1,\"\"),IF(AND(YEAR(ФевНед1+7)=CalendarYear,MONTH(ФевНед1+7)=2),ФевНед1+7,\"\"))","v":"2019-02-03"}]
[null,null,{"$f":"IF(DAY(ЯнуНед1)=1,IF(AND(YEAR(ЯнуНед1+1)=CalendarYear,MONTH(ЯнуНед1+1)=1),ЯнуНед1+1,\"\"),IF(AND(YEAR(ЯнуНед1+8)=CalendarYear,MONTH(ЯнуНед1+8)=1),ЯнуНед1+8,\"\"))","v":"2019-01-07"},{"$f":"IF(DAY(ЯнуНед1)=1,IF(AND(YEAR(ЯнуНед1+2)=CalendarYear,MONTH(ЯнуНед1+2)=1),ЯнуНед1+2,\"\"),IF(AND(YEAR(ЯнуНед1+9)=CalendarYear,MONTH(ЯнуНед1+9)=1),ЯнуНед1+9,\"\"))","v":"2019-01-08"},{"$f":"IF(DAY(ЯнуНед1)=1,IF(AND(YEAR(ЯнуНед1+3)=CalendarYear,MONTH(ЯнуНед1+3)=1),ЯнуНед1+3,\"\"),IF(AND(YEAR(ЯнуНед1+10)=CalendarYear,MONTH(ЯнуНед1+10)=1),ЯнуНед1+10,\"\"))","v":"2019-01-09"},{"$f":"IF(DAY(ЯнуНед1)=1,IF(AND(YEAR(ЯнуНед1+4)=CalendarYear,MONTH(ЯнуНед1+4)=1),ЯнуНед1+4,\"\"),IF(AND(YEAR(ЯнуНед1+11)=CalendarYear,MONTH(ЯнуНед1+11)=1),ЯнуНед1+11,\"\"))","v":"2019-01-10"},{"$f":"IF(DAY(ЯнуНед1)=1,IF(AND(YEAR(ЯнуНед1+5)=CalendarYear,MONTH(ЯнуНед1+5)=1),ЯнуНед1+5,\"\"),IF(AND(YEAR(ЯнуНед1+12)=CalendarYear,MONTH(ЯнуНед1+12)=1),ЯнуНед1+12,\"\"))","v":"2019-01-11"},{"$f":"IF(DAY(ЯнуНед1)=1,IF(AND(YEAR(ЯнуНед1+6)=CalendarYear,MONTH(ЯнуНед1+6)=1),ЯнуНед1+6,\"\"),IF(AND(YEAR(ЯнуНед1+13)=CalendarYear,MONTH(ЯнуНед1+13)=1),ЯнуНед1+13,\"\"))","v":"2019-01-12"},{"$f":"IF(DAY(ЯнуНед1)=1,IF(AND(YEAR(ЯнуНед1+7)=CalendarYear,MONTH(ЯнуНед1+7)=1),ЯнуНед1+7,\"\"),IF(AND(YEAR(ЯнуНед1+14)=CalendarYear,MONTH(ЯнуНед1+14)=1),ЯнуНед1+14,\"\"))","v":"2019-01-13"},null,{"$f":"IF(DAY(ФевНед1)=1,IF(AND(YEAR(ФевНед1+1)=CalendarYear,MONTH(ФевНед1+1)=2),ФевНед1+1,\"\"),IF(AND(YEAR(ФевНед1+8)=CalendarYear,MONTH(ФевНед1+8)=2),ФевНед1+8,\"\"))","v":"2019-02-04"},{"$f":"IF(DAY(ФевНед1)=1,IF(AND(YEAR(ФевНед1+2)=CalendarYear,MONTH(ФевНед1+2)=2),ФевНед1+2,\"\"),IF(AND(YEAR(ФевНед1+9)=CalendarYear,MONTH(ФевНед1+9)=2),ФевНед1+9,\"\"))","v":"2019-02-05"},{"$f":"IF(DAY(ФевНед1)=1,IF(AND(YEAR(ФевНед1+3)=CalendarYear,MONTH(ФевНед1+3)=2),ФевНед1+3,\"\"),IF(AND(YEAR(ФевНед1+10)=CalendarYear,MONTH(ФевНед1+10)=2),ФевНед1+10,\"\"))","v":"2019-02-06"},{"$f":"IF(DAY(ФевНед1)=1,IF(AND(YEAR(ФевНед1+4)=CalendarYear,MONTH(ФевНед1+4)=2),ФевНед1+4,\"\"),IF(AND(YEAR(ФевНед1+11)=CalendarYear,MONTH(ФевНед1+11)=2),ФевНед1+11,\"\"))","v":"2019-02-07"},{"$f":"IF(DAY(ФевНед1)=1,IF(AND(YEAR(ФевНед1+5)=CalendarYear,MONTH(ФевНед1+5)=2),ФевНед1+5,\"\"),IF(AND(YEAR(ФевНед1+12)=CalendarYear,MONTH(ФевНед1+12)=2),ФевНед1+12,\"\"))","v":"2019-02-08"},{"$f":"IF(DAY(ФевНед1)=1,IF(AND(YEAR(ФевНед1+6)=CalendarYear,MONTH(ФевНед1+6)=2),ФевНед1+6,\"\"),IF(AND(YEAR(ФевНед1+13)=CalendarYear,MONTH(ФевНед1+13)=2),ФевНед1+13,\"\"))","v":"2019-02-09"},{"$f":"IF(DAY(ФевНед1)=1,IF(AND(YEAR(ФевНед1+7)=CalendarYear,MONTH(ФевНед1+7)=2),ФевНед1+7,\"\"),IF(AND(YEAR(ФевНед1+14)=CalendarYear,MONTH(ФевНед1+14)=2),ФевНед1+14,\"\"))","v":"2019-02-10"},{"$nulls":3},"14 ФЕВРУАРИ"]
[null,null,{"$f":"IF(DAY(ЯнуНед1)=1,IF(AND(YEAR(ЯнуНед1+8)=CalendarYear,MONTH(ЯнуНед1+8)=1),ЯнуНед1+8,\"\"),IF(AND(YEAR(ЯнуНед1+15)=CalendarYear,MONTH(ЯнуНед1+15)=1),ЯнуНед1+15,\"\"))","v":"2019-01-14"},{"$f":"IF(DAY(ЯнуНед1)=1,IF(AND(YEAR(ЯнуНед1+9)=CalendarYear,MONTH(ЯнуНед1+9)=1),ЯнуНед1+9,\"\"),IF(AND(YEAR(ЯнуНед1+16)=CalendarYear,MONTH(ЯнуНед1+16)=1),ЯнуНед1+16,\"\"))","v":"2019-01-15"},{"$f":"IF(DAY(ЯнуНед1)=1,IF(AND(YEAR(ЯнуНед1+10)=CalendarYear,MONTH(ЯнуНед1+10)=1),ЯнуНед1+10,\"\"),IF(AND(YEAR(ЯнуНед1+17)=CalendarYear,MONTH(ЯнуНед1+17)=1),ЯнуНед1+17,\"\"))","v":"2019-01-16"},{"$f":"IF(DAY(ЯнуНед1)=1,IF(AND(YEAR(ЯнуНед1+11)=CalendarYear,MONTH(ЯнуНед1+11)=1),ЯнуНед1+11,\"\"),IF(AND(YEAR(ЯнуНед1+18)=CalendarYear,MONTH(ЯнуНед1+18)=1),ЯнуНед1+18,\"\"))","v":"2019-01-17"},{"$f":"IF(DAY(ЯнуНед1)=1,IF(AND(YEAR(ЯнуНед1+12)=CalendarYear,MONTH(ЯнуНед1+12)=1),ЯнуНед1+12,\"\"),IF(AND(YEAR(ЯнуНед1+19)=CalendarYear,MONTH(ЯнуНед1+19)=1),ЯнуНед1+19,\"\"))","v":"2019-01-18"},{"$f":"IF(DAY(ЯнуНед1)=1,IF(AND(YEAR(ЯнуНед1+13)=CalendarYear,MONTH(ЯнуНед1+13)=1),ЯнуНед1+13,\"\"),IF(AND(YEAR(ЯнуНед1+20)=CalendarYear,MONTH(ЯнуНед1+20)=1),ЯнуНед1+20,\"\"))","v":"2019-01-19"},{"$f":"IF(DAY(ЯнуНед1)=1,IF(AND(YEAR(ЯнуНед1+14)=CalendarYear,MONTH(ЯнуНед1+14)=1),ЯнуНед1+14,\"\"),IF(AND(YEAR(ЯнуНед1+21)=CalendarYear,MONTH(ЯнуНед1+21)=1),ЯнуНед1+21,\"\"))","v":"2019-01-20"},null,{"$f":"IF(DAY(ФевНед1)=1,IF(AND(YEAR(ФевНед1+8)=CalendarYear,MONTH(ФевНед1+8)=2),ФевНед1+8,\"\"),IF(AND(YEAR(ФевНед1+15)=CalendarYear,MONTH(ФевНед1+15)=2),ФевНед1+15,\"\"))","v":"2019-02-11"},{"$f":"IF(DAY(ФевНед1)=1,IF(AND(YEAR(ФевНед1+9)=CalendarYear,MONTH(ФевНед1+9)=2),ФевНед1+9,\"\"),IF(AND(YEAR(ФевНед1+16)=CalendarYear,MONTH(ФевНед1+16)=2),ФевНед1+16,\"\"))","v":"2019-02-12"},{"$f":"IF(DAY(ФевНед1)=1,IF(AND(YEAR(ФевНед1+10)=CalendarYear,MONTH(ФевНед1+10)=2),ФевНед1+10,\"\"),IF(AND(YEAR(ФевНед1+17)=CalendarYear,MONTH(ФевНед1+17)=2),ФевНед1+17,\"\"))","v":"2019-02-13"},{"$f":"IF(DAY(ФевНед1)=1,IF(AND(YEAR(ФевНед1+11)=CalendarYear,MONTH(ФевНед1+11)=2),ФевНед1+11,\"\"),IF(AND(YEAR(ФевНед1+18)=CalendarYear,MONTH(ФевНед1+18)=2),ФевНед1+18,\"\"))","v":"2019-02-14"},{"$f":"IF(DAY(ФевНед1)=1,IF(AND(YEAR(ФевНед1+12)=CalendarYear,MONTH(ФевНед1+12)=2),ФевНед1+12,\"\"),IF(AND(YEAR(ФевНед1+19)=CalendarYear,MONTH(ФевНед1+19)=2),ФевНед1+19,\"\"))","v":"2019-02-15"},{"$f":"IF(DAY(ФевНед1)=1,IF(AND(YEAR(ФевНед1+13)=CalendarYear,MONTH(ФевНед1+13)=2),ФевНед1+13,\"\"),IF(AND(YEAR(ФевНед1+20)=CalendarYear,MONTH(ФевНед1+20)=2),ФевНед1+20,\"\"))","v":"2019-02-16"},{"$f":"IF(DAY(ФевНед1)=1,IF(AND(YEAR(ФевНед1+14)=CalendarYear,MONTH(ФевНед1+14)=2),ФевНед1+14,\"\"),IF(AND(YEAR(ФевНед1+21)=CalendarYear,MONTH(ФевНед1+21)=2),ФевНед1+21,\"\"))","v":"2019-02-17"},{"$nulls":3},"СВ. ВАЛЕНТИН"]
[null,null,{"$f":"IF(DAY(ЯнуНед1)=1,IF(AND(YEAR(ЯнуНед1+15)=CalendarYear,MONTH(ЯнуНед1+15)=1),ЯнуНед1+15,\"\"),IF(AND(YEAR(ЯнуНед1+22)=CalendarYear,MONTH(ЯнуНед1+22)=1),ЯнуНед1+22,\"\"))","v":"2019-01-21"},{"$f":"IF(DAY(ЯнуНед1)=1,IF(AND(YEAR(ЯнуНед1+16)=CalendarYear,MONTH(ЯнуНед1+16)=1),ЯнуНед1+16,\"\"),IF(AND(YEAR(ЯнуНед1+23)=CalendarYear,MONTH(ЯнуНед1+23)=1),ЯнуНед1+23,\"\"))","v":"2019-01-22"},{"$f":"IF(DAY(ЯнуНед1)=1,IF(AND(YEAR(ЯнуНед1+17)=CalendarYear,MONTH(ЯнуНед1+17)=1),ЯнуНед1+17,\"\"),IF(AND(YEAR(ЯнуНед1+24)=CalendarYear,MONTH(ЯнуНед1+24)=1),ЯнуНед1+24,\"\"))","v":"2019-01-23"},{"$f":"IF(DAY(ЯнуНед1)=1,IF(AND(YEAR(ЯнуНед1+18)=CalendarYear,MONTH(ЯнуНед1+18)=1),ЯнуНед1+18,\"\"),IF(AND(YEAR(ЯнуНед1+25)=CalendarYear,MONTH(ЯнуНед1+25)=1),ЯнуНед1+25,\"\"))","v":"2019-01-24"},{"$f":"IF(DAY(ЯнуНед1)=1,IF(AND(YEAR(ЯнуНед1+19)=CalendarYear,MONTH(ЯнуНед1+19)=1),ЯнуНед1+19,\"\"),IF(AND(YEAR(ЯнуНед1+26)=CalendarYear,MONTH(ЯнуНед1+26)=1),ЯнуНед1+26,\"\"))","v":"2019-01-25"},{"$f":"IF(DAY(ЯнуНед1)=1,IF(AND(YEAR(ЯнуНед1+20)=CalendarYear,MONTH(ЯнуНед1+20)=1),ЯнуНед1+20,\"\"),IF(AND(YEAR(ЯнуНед1+27)=CalendarYear,MONTH(ЯнуНед1+27)=1),ЯнуНед1+27,\"\"))","v":"2019-01-26"},{"$f":"IF(DAY(ЯнуНед1)=1,IF(AND(YEAR(ЯнуНед1+21)=CalendarYear,MONTH(ЯнуНед1+21)=1),ЯнуНед1+21,\"\"),IF(AND(YEAR(ЯнуНед1+28)=CalendarYear,MONTH(ЯнуНед1+28)=1),ЯнуНед1+28,\"\"))","v":"2019-01-27"},null,{"$f":"IF(DAY(ФевНед1)=1,IF(AND(YEAR(ФевНед1+15)=CalendarYear,MONTH(ФевНед1+15)=2),ФевНед1+15,\"\"),IF(AND(YEAR(ФевНед1+22)=CalendarYear,MONTH(ФевНед1+22)=2),ФевНед1+22,\"\"))","v":"2019-02-18"},{"$f":"IF(DAY(ФевНед1)=1,IF(AND(YEAR(ФевНед1+16)=CalendarYear,MONTH(ФевНед1+16)=2),ФевНед1+16,\"\"),IF(AND(YEAR(ФевНед1+23)=CalendarYear,MONTH(ФевНед1+23)=2),ФевНед1+23,\"\"))","v":"2019-02-19"},{"$f":"IF(DAY(ФевНед1)=1,IF(AND(YEAR(ФевНед1+17)=CalendarYear,MONTH(ФевНед1+17)=2),ФевНед1+17,\"\"),IF(AND(YEAR(ФевНед1+24)=CalendarYear,MONTH(ФевНед1+24)=2),ФевНед1+24,\"\"))","v":"2019-02-20"},{"$f":"IF(DAY(ФевНед1)=1,IF(AND(YEAR(ФевНед1+18)=CalendarYear,MONTH(ФевНед1+18)=2),ФевНед1+18,\"\"),IF(AND(YEAR(ФевНед1+25)=CalendarYear,MONTH(ФевНед1+25)=2),ФевНед1+25,\"\"))","v":"2019-02-21"},{"$f":"IF(DAY(ФевНед1)=1,IF(AND(YEAR(ФевНед1+19)=CalendarYear,MONTH(ФевНед1+19)=2),ФевНед1+19,\"\"),IF(AND(YEAR(ФевНед1+26)=CalendarYear,MONTH(ФевНед1+26)=2),ФевНед1+26,\"\"))","v":"2019-02-22"},{"$f":"IF(DAY(ФевНед1)=1,IF(AND(YEAR(ФевНед1+20)=CalendarYear,MONTH(ФевНед1+20)=2),ФевНед1+20,\"\"),IF(AND(YEAR(ФевНед1+27)=CalendarYear,MONTH(ФевНед1+27)=2),ФевНед1+27,\"\"))","v":"2019-02-23"},{"$f":"IF(DAY(ФевНед1)=1,IF(AND(YEAR(ФевНед1+21)=CalendarYear,MONTH(ФевНед1+21)=2),ФевНед1+21,\"\"),IF(AND(YEAR(ФевНед1+28)=CalendarYear,MONTH(ФевНед1+28)=2),ФевНед1+28,\"\"))","v":"2019-02-24"}]
[null,null,{"$f":"IF(DAY(ЯнуНед1)=1,IF(AND(YEAR(ЯнуНед1+22)=CalendarYear,MONTH(ЯнуНед1+22)=1),ЯнуНед1+22,\"\"),IF(AND(YEAR(ЯнуНед1+29)=CalendarYear,MONTH(ЯнуНед1+29)=1),ЯнуНед1+29,\"\"))","v":"2019-01-28"},{"$f":"IF(DAY(ЯнуНед1)=1,IF(AND(YEAR(ЯнуНед1+23)=CalendarYear,MONTH(ЯнуНед1+23)=1),ЯнуНед1+23,\"\"),IF(AND(YEAR(ЯнуНед1+30)=CalendarYear,MONTH(ЯнуНед1+30)=1),ЯнуНед1+30,\"\"))","v":"2019-01-29"},{"$f":"IF(DAY(ЯнуНед1)=1,IF(AND(YEAR(ЯнуНед1+24)=CalendarYear,MONTH(ЯнуНед1+24)=1),ЯнуНед1+24,\"\"),IF(AND(YEAR(ЯнуНед1+31)=CalendarYear,MONTH(ЯнуНед1+31)=1),ЯнуНед1+31,\"\"))","v":"2019-01-30"},{"$f":"IF(DAY(ЯнуНед1)=1,IF(AND(YEAR(ЯнуНед1+25)=CalendarYear,MONTH(ЯнуНед1+25)=1),ЯнуНед1+25,\"\"),IF(AND(YEAR(ЯнуНед1+32)=CalendarYear,MONTH(ЯнуНед1+32)=1),ЯнуНед1+32,\"\"))","v":"2019-01-31"},{"$f":"IF(DAY(ЯнуНед1)=1,IF(AND(YEAR(ЯнуНед1+26)=CalendarYear,MONTH(ЯнуНед1+26)=1),ЯнуНед1+26,\"\"),IF(AND(YEAR(ЯнуНед1+33)=CalendarYear,MONTH(ЯнуНед1+33)=1),ЯнуНед1+33,\"\"))","v":""},{"$f":"IF(DAY(ЯнуНед1)=1,IF(AND(YEAR(ЯнуНед1+27)=CalendarYear,MONTH(ЯнуНед1+27)=1),ЯнуНед1+27,\"\"),IF(AND(YEAR(ЯнуНед1+34)=CalendarYear,MONTH(ЯнуНед1+34)=1),ЯнуНед1+34,\"\"))","v":""},{"$f":"IF(DAY(ЯнуНед1)=1,IF(AND(YEAR(ЯнуНед1+28)=CalendarYear,MONTH(ЯнуНед1+28)=1),ЯнуНед1+28,\"\"),IF(AND(YEAR(ЯнуНед1+35)=CalendarYear,MONTH(ЯнуНед1+35)=1),ЯнуНед1+35,\"\"))","v":""},null,{"$f":"IF(DAY(ФевНед1)=1,IF(AND(YEAR(ФевНед1+22)=CalendarYear,MONTH(ФевНед1+22)=2),ФевНед1+22,\"\"),IF(AND(YEAR(ФевНед1+29)=CalendarYear,MONTH(ФевНед1+29)=2),ФевНед1+29,\"\"))","v":"2019-02-25"},{"$f":"IF(DAY(ФевНед1)=1,IF(AND(YEAR(ФевНед1+23)=CalendarYear,MONTH(ФевНед1+23)=2),ФевНед1+23,\"\"),IF(AND(YEAR(ФевНед1+30)=CalendarYear,MONTH(ФевНед1+30)=2),ФевНед1+30,\"\"))","v":"2019-02-26"},{"$f":"IF(DAY(ФевНед1)=1,IF(AND(YEAR(ФевНед1+24)=CalendarYear,MONTH(ФевНед1+24)=2),ФевНед1+24,\"\"),IF(AND(YEAR(ФевНед1+31)=CalendarYear,MONTH(ФевНед1+31)=2),ФевНед1+31,\"\"))","v":"2019-02-27"},{"$f":"IF(DAY(ФевНед1)=1,IF(AND(YEAR(ФевНед1+25)=CalendarYear,MONTH(ФевНед1+25)=2),ФевНед1+25,\"\"),IF(AND(YEAR(ФевНед1+32)=CalendarYear,MONTH(ФевНед1+32)=2),ФевНед1+32,\"\"))","v":"2019-02-28"},{"$f":"IF(DAY(ФевНед1)=1,IF(AND(YEAR(ФевНед1+26)=CalendarYear,MONTH(ФевНед1+26)=2),ФевНед1+26,\"\"),IF(AND(YEAR(ФевНед1+33)=CalendarYear,MONTH(ФевНед1+33)=2),ФевНед1+33,\"\"))","v":""},{"$f":"IF(DAY(ФевНед1)=1,IF(AND(YEAR(ФевНед1+27)=CalendarYear,MONTH(ФевНед1+27)=2),ФевНед1+27,\"\"),IF(AND(YEAR(ФевНед1+34)=CalendarYear,MONTH(ФевНед1+34)=2),ФевНед1+34,\"\"))","v":""},{"$f":"IF(DAY(ФевНед1)=1,IF(AND(YEAR(ФевНед1+28)=CalendarYear,MONTH(ФевНед1+28)=2),ФевНед1+28,\"\"),IF(AND(YEAR(ФевНед1+35)=CalendarYear,MONTH(ФевНед1+35)=2),ФевНед1+35,\"\"))","v":""},{"$nulls":3},"22 ФЕВРУАРИ"]
[null,null,{"$f":"IF(DAY(ЯнуНед1)=1,IF(AND(YEAR(ЯнуНед1+29)=CalendarYear,MONTH(ЯнуНед1+29)=1),ЯнуНед1+29,\"\"),IF(AND(YEAR(ЯнуНед1+36)=CalendarYear,MONTH(ЯнуНед1+36)=1),ЯнуНед1+36,\"\"))","v":""},{"$f":"IF(DAY(ЯнуНед1)=1,IF(AND(YEAR(ЯнуНед1+30)=CalendarYear,MONTH(ЯнуНед1+30)=1),ЯнуНед1+30,\"\"),IF(AND(YEAR(ЯнуНед1+37)=CalendarYear,MONTH(ЯнуНед1+37)=1),ЯнуНед1+37,\"\"))","v":""},{"$f":"IF(DAY(ЯнуНед1)=1,IF(AND(YEAR(ЯнуНед1+31)=CalendarYear,MONTH(ЯнуНед1+31)=1),ЯнуНед1+31,\"\"),IF(AND(YEAR(ЯнуНед1+38)=CalendarYear,MONTH(ЯнуНед1+38)=1),ЯнуНед1+38,\"\"))","v":""},{"$f":"IF(DAY(ЯнуНед1)=1,IF(AND(YEAR(ЯнуНед1+32)=CalendarYear,MONTH(ЯнуНед1+32)=1),ЯнуНед1+32,\"\"),IF(AND(YEAR(ЯнуНед1+39)=CalendarYear,MONTH(ЯнуНед1+39)=1),ЯнуНед1+39,\"\"))","v":""},{"$f":"IF(DAY(ЯнуНед1)=1,IF(AND(YEAR(ЯнуНед1+33)=CalendarYear,MONTH(ЯнуНед1+33)=1),ЯнуНед1+33,\"\"),IF(AND(YEAR(ЯнуНед1+40)=CalendarYear,MONTH(ЯнуНед1+40)=1),ЯнуНед1+40,\"\"))","v":""},{"$f":"IF(DAY(ЯнуНед1)=1,IF(AND(YEAR(ЯнуНед1+34)=CalendarYear,MONTH(ЯнуНед1+34)=1),ЯнуНед1+34,\"\"),IF(AND(YEAR(ЯнуНед1+41)=CalendarYear,MONTH(ЯнуНед1+41)=1),ЯнуНед1+41,\"\"))","v":""},{"$f":"IF(DAY(ЯнуНед1)=1,IF(AND(YEAR(ЯнуНед1+35)=CalendarYear,MONTH(ЯнуНед1+35)=1),ЯнуНед1+35,\"\"),IF(AND(YEAR(ЯнуНед1+42)=CalendarYear,MONTH(ЯнуНед1+42)=1),ЯнуНед1+42,\"\"))","v":""},null,{"$f":"IF(DAY(ФевНед1)=1,IF(AND(YEAR(ФевНед1+29)=CalendarYear,MONTH(ФевНед1+29)=2),ФевНед1+29,\"\"),IF(AND(YEAR(ФевНед1+36)=CalendarYear,MONTH(ФевНед1+36)=2),ФевНед1+36,\"\"))","v":""},{"$f":"IF(DAY(ФевНед1)=1,IF(AND(YEAR(ФевНед1+30)=CalendarYear,MONTH(ФевНед1+30)=2),ФевНед1+30,\"\"),IF(AND(YEAR(ФевНед1+37)=CalendarYear,MONTH(ФевНед1+37)=2),ФевНед1+37,\"\"))","v":""},{"$f":"IF(DAY(ФевНед1)=1,IF(AND(YEAR(ФевНед1+31)=CalendarYear,MONTH(ФевНед1+31)=2),ФевНед1+31,\"\"),IF(AND(YEAR(ФевНед1+38)=CalendarYear,MONTH(ФевНед1+38)=2),ФевНед1+38,\"\"))","v":""},{"$f":"IF(DAY(ФевНед1)=1,IF(AND(YEAR(ФевНед1+32)=CalendarYear,MONTH(ФевНед1+32)=2),ФевНед1+32,\"\"),IF(AND(YEAR(ФевНед1+39)=CalendarYear,MONTH(ФевНед1+39)=2),ФевНед1+39,\"\"))","v":""},{"$f":"IF(DAY(ФевНед1)=1,IF(AND(YEAR(ФевНед1+33)=CalendarYear,MONTH(ФевНед1+33)=2),ФевНед1+33,\"\"),IF(AND(YEAR(ФевНед1+40)=CalendarYear,MONTH(ФевНед1+40)=2),ФевНед1+40,\"\"))","v":""},{"$f":"IF(DAY(ФевНед1)=1,IF(AND(YEAR(ФевНед1+34)=CalendarYear,MONTH(ФевНед1+34)=2),ФевНед1+34,\"\"),IF(AND(YEAR(ФевНед1+41)=CalendarYear,MONTH(ФевНед1+41)=2),ФевНед1+41,\"\"))","v":""},{"$f":"IF(DAY(ФевНед1)=1,IF(AND(YEAR(ФевНед1+35)=CalendarYear,MONTH(ФевНед1+35)=2),ФевНед1+35,\"\"),IF(AND(YEAR(ФевНед1+42)=CalendarYear,MONTH(ФевНед1+42)=2),ФевНед1+42,\"\"))","v":""},{"$nulls":3},"ОТВОРЕНИ ВРАТИ"]
[]
[null,null,"МАРТ",{"$nulls":7},"АПРИЛ"]
[null,null,"П","В","С","Ч","П","С","Н",null,"П","В","С","Ч","П","С","Н"]
[null,null,{"$f":"IF(DAY(МарНед1)=1,\"\",IF(AND(YEAR(МарНед1+1)=CalendarYear,MONTH(МарНед1+1)=3),МарНед1+1,\"\"))","v":""},{"$f":"IF(DAY(МарНед1)=1,\"\",IF(AND(YEAR(МарНед1+2)=CalendarYear,MONTH(МарНед1+2)=3),МарНед1+2,\"\"))","v":""},{"$f":"IF(DAY(МарНед1)=1,\"\",IF(AND(YEAR(МарНед1+3)=CalendarYear,MONTH(МарНед1+3)=3),МарНед1+3,\"\"))","v":""},{"$f":"IF(DAY(МарНед1)=1,\"\",IF(AND(YEAR(МарНед1+4)=CalendarYear,MONTH(МарНед1+4)=3),МарНед1+4,\"\"))","v":""},{"$f":"IF(DAY(МарНед1)=1,\"\",IF(AND(YEAR(МарНед1+5)=CalendarYear,MONTH(МарНед1+5)=3),МарНед1+5,\"\"))","v":"2019-03-01"},{"$f":"IF(DAY(МарНед1)=1,\"\",IF(AND(YEAR(МарНед1+6)=CalendarYear,MONTH(МарНед1+6)=3),МарНед1+6,\"\"))","v":"2019-03-02"},{"$f":"IF(DAY(МарНед1)=1,IF(AND(YEAR(МарНед1)=CalendarYear,MONTH(МарНед1)=3),МарНед1,\"\"),IF(AND(YEAR(МарНед1+7)=CalendarYear,MONTH(МарНед1+7)=3),МарНед1+7,\"\"))","v":"2019-03-03"},null,{"$f":"IF(DAY(АпрНед1)=1,\"\",IF(AND(YEAR(АпрНед1+1)=CalendarYear,MONTH(АпрНед1+1)=4),АпрНед1+1,\"\"))","v":"2019-04-01"},{"$f":"IF(DAY(АпрНед1)=1,\"\",IF(AND(YEAR(АпрНед1+2)=CalendarYear,MONTH(АпрНед1+2)=4),АпрНед1+2,\"\"))","v":"2019-04-02"},{"$f":"IF(DAY(АпрНед1)=1,\"\",IF(AND(YEAR(АпрНед1+3)=CalendarYear,MONTH(АпрНед1+3)=4),АпрНед1+3,\"\"))","v":"2019-04-03"},{"$f":"IF(DAY(АпрНед1)=1,\"\",IF(AND(YEAR(АпрНед1+4)=CalendarYear,MONTH(АпрНед1+4)=4),АпрНед1+4,\"\"))","v":"2019-04-04"},{"$f":"IF(DAY(АпрНед1)=1,\"\",IF(AND(YEAR(АпрНед1+5)=CalendarYear,MONTH(АпрНед1+5)=4),АпрНед1+5,\"\"))","v":"2019-04-05"},{"$f":"IF(DAY(АпрНед1)=1,\"\",IF(AND(YEAR(АпрНед1+6)=CalendarYear,MONTH(АпрНед1+6)=4),АпрНед1+6,\"\"))","v":"2019-04-06"},{"$f":"IF(DAY(АпрНед1)=1,IF(AND(YEAR(АпрНед1)=CalendarYear,MONTH(АпрНед1)=4),АпрНед1,\"\"),IF(AND(YEAR(АпрНед1+7)=CalendarYear,MONTH(АпрНед1+7)=4),АпрНед1+7,\"\"))","v":"2019-04-07"}]
[null,null,{"$f":"IF(DAY(МарНед1)=1,IF(AND(YEAR(МарНед1+1)=CalendarYear,MONTH(МарНед1+1)=3),МарНед1+1,\"\"),IF(AND(YEAR(МарНед1+8)=CalendarYear,MONTH(МарНед1+8)=3),МарНед1+8,\"\"))","v":"2019-03-04"},{"$f":"IF(DAY(МарНед1)=1,IF(AND(YEAR(МарНед1+2)=CalendarYear,MONTH(МарНед1+2)=3),МарНед1+2,\"\"),IF(AND(YEAR(МарНед1+9)=CalendarYear,MONTH(МарНед1+9)=3),МарНед1+9,\"\"))","v":"2019-03-05"},{"$f":"IF(DAY(МарНед1)=1,IF(AND(YEAR(МарНед1+3)=CalendarYear,MONTH(МарНед1+3)=3),МарНед1+3,\"\"),IF(AND(YEAR(МарНед1+10)=CalendarYear,MONTH(МарНед1+10)=3),МарНед1+10,\"\"))","v":"2019-03-06"},{"$f":"IF(DAY(МарНед1)=1,IF(AND(YEAR(МарНед1+4)=CalendarYear,MONTH(МарНед1+4)=3),МарНед1+4,\"\"),IF(AND(YEAR(МарНед1+11)=CalendarYear,MONTH(МарНед1+11)=3),МарНед1+11,\"\"))","v":"2019-03-07"},{"$f":"IF(DAY(МарНед1)=1,IF(AND(YEAR(МарНед1+5)=CalendarYear,MONTH(МарНед1+5)=3),МарНед1+5,\"\"),IF(AND(YEAR(МарНед1+12)=CalendarYear,MONTH(МарНед1+12)=3),МарНед1+12,\"\"))","v":"2019-03-08"},{"$f":"IF(DAY(МарНед1)=1,IF(AND(YEAR(МарНед1+6)=CalendarYear,MONTH(МарНед1+6)=3),МарНед1+6,\"\"),IF(AND(YEAR(МарНед1+13)=CalendarYear,MONTH(МарНед1+13)=3),МарНед1+13,\"\"))","v":"2019-03-09"},{"$f":"IF(DAY(МарНед1)=1,IF(AND(YEAR(МарНед1+7)=CalendarYear,MONTH(МарНед1+7)=3),МарНед1+7,\"\"),IF(AND(YEAR(МарНед1+14)=CalendarYear,MONTH(МарНед1+14)=3),МарНед1+14,\"\"))","v":"2019-03-10"},null,{"$f":"IF(DAY(АпрНед1)=1,IF(AND(YEAR(АпрНед1+1)=CalendarYear,MONTH(АпрНед1+1)=4),АпрНед1+1,\"\"),IF(AND(YEAR(АпрНед1+8)=CalendarYear,MONTH(АпрНед1+8)=4),АпрНед1+8,\"\"))","v":"2019-04-08"},{"$f":"IF(DAY(АпрНед1)=1,IF(AND(YEAR(АпрНед1+2)=CalendarYear,MONTH(АпрНед1+2)=4),АпрНед1+2,\"\"),IF(AND(YEAR(АпрНед1+9)=CalendarYear,MONTH(АпрНед1+9)=4),АпрНед1+9,\"\"))","v":"2019-04-09"},{"$f":"IF(DAY(АпрНед1)=1,IF(AND(YEAR(АпрНед1+3)=CalendarYear,MONTH(АпрНед1+3)=4),АпрНед1+3,\"\"),IF(AND(YEAR(АпрНед1+10)=CalendarYear,MONTH(АпрНед1+10)=4),АпрНед1+10,\"\"))","v":"2019-04-10"},{"$f":"IF(DAY(АпрНед1)=1,IF(AND(YEAR(АпрНед1+4)=CalendarYear,MONTH(АпрНед1+4)=4),АпрНед1+4,\"\"),IF(AND(YEAR(АпрНед1+11)=CalendarYear,MONTH(АпрНед1+11)=4),АпрНед1+11,\"\"))","v":"2019-04-11"},{"$f":"IF(DAY(АпрНед1)=1,IF(AND(YEAR(АпрНед1+5)=CalendarYear,MONTH(АпрНед1+5)=4),АпрНед1+5,\"\"),IF(AND(YEAR(АпрНед1+12)=CalendarYear,MONTH(АпрНед1+12)=4),АпрНед1+12,\"\"))","v":"2019-04-12"},{"$f":"IF(DAY(АпрНед1)=1,IF(AND(YEAR(АпрНед1+6)=CalendarYear,MONTH(АпрНед1+6)=4),АпрНед1+6,\"\"),IF(AND(YEAR(АпрНед1+13)=CalendarYear,MONTH(АпрНед1+13)=4),АпрНед1+13,\"\"))","v":"2019-04-13"},{"$f":"IF(DAY(АпрНед1)=1,IF(AND(YEAR(АпрНед1+7)=CalendarYear,MONTH(АпрНед1+7)=4),АпрНед1+7,\"\"),IF(AND(YEAR(АпрНед1+14)=CalendarYear,MONTH(АпрНед1+14)=4),АпрНед1+14,\"\"))","v":"2019-04-14"}]
[null,null,{"$f":"IF(DAY(МарНед1)=1,IF(AND(YEAR(МарНед1+8)=CalendarYear,MONTH(МарНед1+8)=3),МарНед1+8,\"\"),IF(AND(YEAR(МарНед1+15)=CalendarYear,MONTH(МарНед1+15)=3),МарНед1+15,\"\"))","v":"2019-03-11"},{"$f":"IF(DAY(МарНед1)=1,IF(AND(YEAR(МарНед1+9)=CalendarYear,MONTH(МарНед1+9)=3),МарНед1+9,\"\"),IF(AND(YEAR(МарНед1+16)=CalendarYear,MONTH(МарНед1+16)=3),МарНед1+16,\"\"))","v":"2019-03-12"},{"$f":"IF(DAY(МарНед1)=1,IF(AND(YEAR(МарНед1+10)=CalendarYear,MONTH(МарНед1+10)=3),МарНед1+10,\"\"),IF(AND(YEAR(МарНед1+17)=CalendarYear,MONTH(МарНед1+17)=3),МарНед1+17,\"\"))","v":"2019-03-13"},{"$f":"IF(DAY(МарНед1)=1,IF(AND(YEAR(МарНед1+11)=CalendarYear,MONTH(МарНед1+11)=3),МарНед1+11,\"\"),IF(AND(YEAR(МарНед1+18)=CalendarYear,MONTH(МарНед1+18)=3),МарНед1+18,\"\"))","v":"2019-03-14"},{"$f":"IF(DAY(МарНед1)=1,IF(AND(YEAR(МарНед1+12)=CalendarYear,MONTH(МарНед1+12)=3),МарНед1+12,\"\"),IF(AND(YEAR(МарНед1+19)=CalendarYear,MONTH(МарНед1+19)=3),МарНед1+19,\"\"))","v":"2019-03-15"},{"$f":"IF(DAY(МарНед1)=1,IF(AND(YEAR(МарНед1+13)=CalendarYear,MONTH(МарНед1+13)=3),МарНед1+13,\"\"),IF(AND(YEAR(МарНед1+20)=CalendarYear,MONTH(МарНед1+20)=3),МарНед1+20,\"\"))","v":"2019-03-16"},{"$f":"IF(DAY(МарНед1)=1,IF(AND(YEAR(МарНед1+14)=CalendarYear,MONTH(МарНед1+14)=3),МарНед1+14,\"\"),IF(AND(YEAR(МарНед1+21)=CalendarYear,MONTH(МарНед1+21)=3),МарНед1+21,\"\"))","v":"2019-03-17"},null,{"$f":"IF(DAY(АпрНед1)=1,IF(AND(YEAR(АпрНед1+8)=CalendarYear,MONTH(АпрНед1+8)=4),АпрНед1+8,\"\"),IF(AND(YEAR(АпрНед1+15)=CalendarYear,MONTH(АпрНед1+15)=4),АпрНед1+15,\"\"))","v":"2019-04-15"},{"$f":"IF(DAY(АпрНед1)=1,IF(AND(YEAR(АпрНед1+9)=CalendarYear,MONTH(АпрНед1+9)=4),АпрНед1+9,\"\"),IF(AND(YEAR(АпрНед1+16)=CalendarYear,MONTH(АпрНед1+16)=4),АпрНед1+16,\"\"))","v":"2019-04-16"},{"$f":"IF(DAY(АпрНед1)=1,IF(AND(YEAR(АпрНед1+10)=CalendarYear,MONTH(АпрНед1+10)=4),АпрНед1+10,\"\"),IF(AND(YEAR(АпрНед1+17)=CalendarYear,MONTH(АпрНед1+17)=4),АпрНед1+17,\"\"))","v":"2019-04-17"},{"$f":"IF(DAY(АпрНед1)=1,IF(AND(YEAR(АпрНед1+11)=CalendarYear,MONTH(АпрНед1+11)=4),АпрНед1+11,\"\"),IF(AND(YEAR(АпрНед1+18)=CalendarYear,MONTH(АпрНед1+18)=4),АпрНед1+18,\"\"))","v":"2019-04-18"},{"$f":"IF(DAY(АпрНед1)=1,IF(AND(YEAR(АпрНед1+12)=CalendarYear,MONTH(АпрНед1+12)=4),АпрНед1+12,\"\"),IF(AND(YEAR(АпрНед1+19)=CalendarYear,MONTH(АпрНед1+19)=4),АпрНед1+19,\"\"))","v":"2019-04-19"},{"$f":"IF(DAY(АпрНед1)=1,IF(AND(YEAR(АпрНед1+13)=CalendarYear,MONTH(АпрНед1+13)=4),АпрНед1+13,\"\"),IF(AND(YEAR(АпрНед1+20)=CalendarYear,MONTH(АпрНед1+20)=4),АпрНед1+20,\"\"))","v":"2019-04-20"},{"$f":"IF(DAY(АпрНед1)=1,IF(AND(YEAR(АпрНед1+14)=CalendarYear,MONTH(АпрНед1+14)=4),АпрНед1+14,\"\"),IF(AND(YEAR(АпрНед1+21)=CalendarYear,MONTH(АпрНед1+21)=4),АпрНед1+21,\"\"))","v":"2019-04-21"}]
[null,null,{"$f":"IF(DAY(МарНед1)=1,IF(AND(YEAR(МарНед1+15)=CalendarYear,MONTH(МарНед1+15)=3),МарНед1+15,\"\"),IF(AND(YEAR(МарНед1+22)=CalendarYear,MONTH(МарНед1+22)=3),МарНед1+22,\"\"))","v":"2019-03-18"},{"$f":"IF(DAY(МарНед1)=1,IF(AND(YEAR(МарНед1+16)=CalendarYear,MONTH(МарНед1+16)=3),МарНед1+16,\"\"),IF(AND(YEAR(МарНед1+23)=CalendarYear,MONTH(МарНед1+23)=3),МарНед1+23,\"\"))","v":"2019-03-19"},{"$f":"IF(DAY(МарНед1)=1,IF(AND(YEAR(МарНед1+17)=CalendarYear,MONTH(МарНед1+17)=3),МарНед1+17,\"\"),IF(AND(YEAR(МарНед1+24)=CalendarYear,MONTH(МарНед1+24)=3),МарНед1+24,\"\"))","v":"2019-03-20"},{"$f":"IF(DAY(МарНед1)=1,IF(AND(YEAR(МарНед1+18)=CalendarYear,MONTH(МарНед1+18)=3),МарНед1+18,\"\"),IF(AND(YEAR(МарНед1+25)=CalendarYear,MONTH(МарНед1+25)=3),МарНед1+25,\"\"))","v":"2019-03-21"},{"$f":"IF(DAY(МарНед1)=1,IF(AND(YEAR(МарНед1+19)=CalendarYear,MONTH(МарНед1+19)=3),МарНед1+19,\"\"),IF(AND(YEAR(МарНед1+26)=CalendarYear,MONTH(МарНед1+26)=3),МарНед1+26,\"\"))","v":"2019-03-22"},{"$f":"IF(DAY(МарНед1)=1,IF(AND(YEAR(МарНед1+20)=CalendarYear,MONTH(МарНед1+20)=3),МарНед1+20,\"\"),IF(AND(YEAR(МарНед1+27)=CalendarYear,MONTH(МарНед1+27)=3),МарНед1+27,\"\"))","v":"2019-03-23"},{"$f":"IF(DAY(МарНед1)=1,IF(AND(YEAR(МарНед1+21)=CalendarYear,MONTH(МарНед1+21)=3),МарНед1+21,\"\"),IF(AND(YEAR(МарНед1+28)=CalendarYear,MONTH(МарНед1+28)=3),МарНед1+28,\"\"))","v":"2019-03-24"},null,{"$f":"IF(DAY(АпрНед1)=1,IF(AND(YEAR(АпрНед1+15)=CalendarYear,MONTH(АпрНед1+15)=4),АпрНед1+15,\"\"),IF(AND(YEAR(АпрНед1+22)=CalendarYear,MONTH(АпрНед1+22)=4),АпрНед1+22,\"\"))","v":"2019-04-22"},{"$f":"IF(DAY(АпрНед1)=1,IF(AND(YEAR(АпрНед1+16)=CalendarYear,MONTH(АпрНед1+16)=4),АпрНед1+16,\"\"),IF(AND(YEAR(АпрНед1+23)=CalendarYear,MONTH(АпрНед1+23)=4),АпрНед1+23,\"\"))","v":"2019-04-23"},{"$f":"IF(DAY(АпрНед1)=1,IF(AND(YEAR(АпрНед1+17)=CalendarYear,MONTH(АпрНед1+17)=4),АпрНед1+17,\"\"),IF(AND(YEAR(АпрНед1+24)=CalendarYear,MONTH(АпрНед1+24)=4),АпрНед1+24,\"\"))","v":"2019-04-24"},{"$f":"IF(DAY(АпрНед1)=1,IF(AND(YEAR(АпрНед1+18)=CalendarYear,MONTH(АпрНед1+18)=4),АпрНед1+18,\"\"),IF(AND(YEAR(АпрНед1+25)=CalendarYear,MONTH(АпрНед1+25)=4),АпрНед1+25,\"\"))","v":"2019-04-25"},{"$f":"IF(DAY(АпрНед1)=1,IF(AND(YEAR(АпрНед1+19)=CalendarYear,MONTH(АпрНед1+19)=4),АпрНед1+19,\"\"),IF(AND(YEAR(АпрНед1+26)=CalendarYear,MONTH(АпрНед1+26)=4),АпрНед1+26,\"\"))","v":"2019-04-26"},{"$f":"IF(DAY(АпрНед1)=1,IF(AND(YEAR(АпрНед1+20)=CalendarYear,MONTH(АпрНед1+20)=4),АпрНед1+20,\"\"),IF(AND(YEAR(АпрНед1+27)=CalendarYear,MONTH(АпрНед1+27)=4),АпрНед1+27,\"\"))","v":"2019-04-27"},{"$f":"IF(DAY(АпрНед1)=1,IF(AND(YEAR(АпрНед1+21)=CalendarYear,MONTH(АпрНед1+21)=4),АпрНед1+21,\"\"),IF(AND(YEAR(АпрНед1+28)=CalendarYear,MONTH(АпрНед1+28)=4),АпрНед1+28,\"\"))","v":"2019-04-28"}]
[null,null,{"$f":"IF(DAY(МарНед1)=1,IF(AND(YEAR(МарНед1+22)=CalendarYear,MONTH(МарНед1+22)=3),МарНед1+22,\"\"),IF(AND(YEAR(МарНед1+29)=CalendarYear,MONTH(МарНед1+29)=3),МарНед1+29,\"\"))","v":"2019-03-25"},{"$f":"IF(DAY(МарНед1)=1,IF(AND(YEAR(МарНед1+23)=CalendarYear,MONTH(МарНед1+23)=3),МарНед1+23,\"\"),IF(AND(YEAR(МарНед1+30)=CalendarYear,MONTH(МарНед1+30)=3),МарНед1+30,\"\"))","v":"2019-03-26"},{"$f":"IF(DAY(МарНед1)=1,IF(AND(YEAR(МарНед1+24)=CalendarYear,MONTH(МарНед1+24)=3),МарНед1+24,\"\"),IF(AND(YEAR(МарНед1+31)=CalendarYear,MONTH(МарНед1+31)=3),МарНед1+31,\"\"))","v":"2019-03-27"},{"$f":"IF(DAY(МарНед1)=1,IF(AND(YEAR(МарНед1+25)=CalendarYear,MONTH(МарНед1+25)=3),МарНед1+25,\"\"),IF(AND(YEAR(МарНед1+32)=CalendarYear,MONTH(МарНед1+32)=3),МарНед1+32,\"\"))","v":"2019-03-28"},{"$f":"IF(DAY(МарНед1)=1,IF(AND(YEAR(МарНед1+26)=CalendarYear,MONTH(МарНед1+26)=3),МарНед1+26,\"\"),IF(AND(YEAR(МарНед1+33)=CalendarYear,MONTH(МарНед1+33)=3),МарНед1+33,\"\"))","v":"2019-03-29"},{"$f":"IF(DAY(МарНед1)=1,IF(AND(YEAR(МарНед1+27)=CalendarYear,MONTH(МарНед1+27)=3),МарНед1+27,\"\"),IF(AND(YEAR(МарНед1+34)=CalendarYear,MONTH(МарНед1+34)=3),МарНед1+34,\"\"))","v":"2019-03-30"},{"$f":"IF(DAY(МарНед1)=1,IF(AND(YEAR(МарНед1+28)=CalendarYear,MONTH(МарНед1+28)=3),МарНед1+28,\"\"),IF(AND(YEAR(МарНед1+35)=CalendarYear,MONTH(МарНед1+35)=3),МарНед1+35,\"\"))","v":"2019-03-31"},null,{"$f":"IF(DAY(АпрНед1)=1,IF(AND(YEAR(АпрНед1+22)=CalendarYear,MONTH(АпрНед1+22)=4),АпрНед1+22,\"\"),IF(AND(YEAR(АпрНед1+29)=CalendarYear,MONTH(АпрНед1+29)=4),АпрНед1+29,\"\"))","v":"2019-04-29"},{"$f":"IF(DAY(АпрНед1)=1,IF(AND(YEAR(АпрНед1+23)=CalendarYear,MONTH(АпрНед1+23)=4),АпрНед1+23,\"\"),IF(AND(YEAR(АпрНед1+30)=CalendarYear,MONTH(АпрНед1+30)=4),АпрНед1+30,\"\"))","v":"2019-04-30"},{"$f":"IF(DAY(АпрНед1)=1,IF(AND(YEAR(АпрНед1+24)=CalendarYear,MONTH(АпрНед1+24)=4),АпрНед1+24,\"\"),IF(AND(YEAR(АпрНед1+31)=CalendarYear,MONTH(АпрНед1+31)=4),АпрНед1+31,\"\"))","v":""},{"$f":"IF(DAY(АпрНед1)=1,IF(AND(YEAR(АпрНед1+25)=CalendarYear,MONTH(АпрНед1+25)=4),АпрНед1+25,\"\"),IF(AND(YEAR(АпрНед1+32)=CalendarYear,MONTH(АпрНед1+32)=4),АпрНед1+32,\"\"))","v":""},{"$f":"IF(DAY(АпрНед1)=1,IF(AND(YEAR(АпрНед1+26)=CalendarYear,MONTH(АпрНед1+26)=4),АпрНед1+26,\"\"),IF(AND(YEAR(АпрНед1+33)=CalendarYear,MONTH(АпрНед1+33)=4),АпрНед1+33,\"\"))","v":""},{"$f":"IF(DAY(АпрНед1)=1,IF(AND(YEAR(АпрНед1+27)=CalendarYear,MONTH(АпрНед1+27)=4),АпрНед1+27,\"\"),IF(AND(YEAR(АпрНед1+34)=CalendarYear,MONTH(АпрНед1+34)=4),АпрНед1+34,\"\"))","v":""},{"$f":"IF(DAY(АпрНед1)=1,IF(AND(YEAR(АпрНед1+28)=CalendarYear,MONTH(АпрНед1+28)=4),АпрНед1+28,\"\"),IF(AND(YEAR(АпрНед1+35)=CalendarYear,MONTH(АпрНед1+35)=4),АпрНед1+35,\"\"))","v":""}]
[null,null,{"$f":"IF(DAY(МарНед1)=1,IF(AND(YEAR(МарНед1+29)=CalendarYear,MONTH(МарНед1+29)=3),МарНед1+29,\"\"),IF(AND(YEAR(МарНед1+36)=CalendarYear,MONTH(МарНед1+36)=3),МарНед1+36,\"\"))","v":""},{"$f":"IF(DAY(МарНед1)=1,IF(AND(YEAR(МарНед1+30)=CalendarYear,MONTH(МарНед1+30)=3),МарНед1+30,\"\"),IF(AND(YEAR(МарНед1+37)=CalendarYear,MONTH(МарНед1+37)=3),МарНед1+37,\"\"))","v":""},{"$f":"IF(DAY(МарНед1)=1,IF(AND(YEAR(МарНед1+31)=CalendarYear,MONTH(МарНед1+31)=3),МарНед1+31,\"\"),IF(AND(YEAR(МарНед1+38)=CalendarYear,MONTH(МарНед1+38)=3),МарНед1+38,\"\"))","v":""},{"$f":"IF(DAY(МарНед1)=1,IF(AND(YEAR(МарНед1+32)=CalendarYear,MONTH(МарНед1+32)=3),МарНед1+32,\"\"),IF(AND(YEAR(МарНед1+39)=CalendarYear,MONTH(МарНед1+39)=3),МарНед1+39,\"\"))","v":""},{"$f":"IF(DAY(МарНед1)=1,IF(AND(YEAR(МарНед1+33)=CalendarYear,MONTH(МарНед1+33)=3),МарНед1+33,\"\"),IF(AND(YEAR(МарНед1+40)=CalendarYear,MONTH(МарНед1+40)=3),МарНед1+40,\"\"))","v":""},{"$f":"IF(DAY(МарНед1)=1,IF(AND(YEAR(МарНед1+34)=CalendarYear,MONTH(МарНед1+34)=3),МарНед1+34,\"\"),IF(AND(YEAR(МарНед1+41)=CalendarYear,MONTH(МарНед1+41)=3),МарНед1+41,\"\"))","v":""},{"$f":"IF(DAY(МарНед1)=1,IF(AND(YEAR(МарНед1+35)=CalendarYear,MONTH(МарНед1+35)=3),МарНед1+35,\"\"),IF(AND(YEAR(МарНед1+42)=CalendarYear,MONTH(МарНед1+42)=3),МарНед1+42,\"\"))","v":""},null,{"$f":"IF(DAY(АпрНед1)=1,IF(AND(YEAR(АпрНед1+29)=CalendarYear,MONTH(АпрНед1+29)=4),АпрНед1+29,\"\"),IF(AND(YEAR(АпрНед1+36)=CalendarYear,MONTH(АпрНед1+36)=4),АпрНед1+36,\"\"))","v":""},{"$f":"IF(DAY(АпрНед1)=1,IF(AND(YEAR(АпрНед1+30)=CalendarYear,MONTH(АпрНед1+30)=4),АпрНед1+30,\"\"),IF(AND(YEAR(АпрНед1+37)=CalendarYear,MONTH(АпрНед1+37)=4),АпрНед1+37,\"\"))","v":""},{"$f":"IF(DAY(АпрНед1)=1,IF(AND(YEAR(АпрНед1+31)=CalendarYear,MONTH(АпрНед1+31)=4),АпрНед1+31,\"\"),IF(AND(YEAR(АпрНед1+38)=CalendarYear,MONTH(АпрНед1+38)=4),АпрНед1+38,\"\"))","v":""},{"$f":"IF(DAY(АпрНед1)=1,IF(AND(YEAR(АпрНед1+32)=CalendarYear,MONTH(АпрНед1+32)=4),АпрНед1+32,\"\"),IF(AND(YEAR(АпрНед1+39)=CalendarYear,MONTH(АпрНед1+39)=4),АпрНед1+39,\"\"))","v":""},{"$f":"IF(DAY(АпрНед1)=1,IF(AND(YEAR(АпрНед1+33)=CalendarYear,MONTH(АпрНед1+33)=4),АпрНед1+33,\"\"),IF(AND(YEAR(АпрНед1+40)=CalendarYear,MONTH(АпрНед1+40)=4),АпрНед1+40,\"\"))","v":""},{"$f":"IF(DAY(АпрНед1)=1,IF(AND(YEAR(АпрНед1+34)=CalendarYear,MONTH(АпрНед1+34)=4),АпрНед1+34,\"\"),IF(AND(YEAR(АпрНед1+41)=CalendarYear,MONTH(АпрНед1+41)=4),АпрНед1+41,\"\"))","v":""},{"$f":"IF(DAY(АпрНед1)=1,IF(AND(YEAR(АпрНед1+35)=CalendarYear,MONTH(АпрНед1+35)=4),АпрНед1+35,\"\"),IF(AND(YEAR(АпрНед1+42)=CalendarYear,MONTH(АпрНед1+42)=4),АпрНед1+42,\"\"))","v":""}]
[]
[null,null,"МАЙ",{"$nulls":7},"ЮНИ"]
[null,null,"П","В","С","Ч","П","С","Н",null,"П","В","С","Ч","П","С","Н"]
[null,null,{"$f":"IF(DAY(МайНед1)=1,\"\",IF(AND(YEAR(МайНед1+1)=CalendarYear,MONTH(МайНед1+1)=5),МайНед1+1,\"\"))","v":""},{"$f":"IF(DAY(МайНед1)=1,\"\",IF(AND(YEAR(МайНед1+2)=CalendarYear,MONTH(МайНед1+2)=5),МайНед1+2,\"\"))","v":""},{"$f":"IF(DAY(МайНед1)=1,\"\",IF(AND(YEAR(МайНед1+3)=CalendarYear,MONTH(МайНед1+3)=5),МайНед1+3,\"\"))","v":"2019-05-01"},{"$f":"IF(DAY(МайНед1)=1,\"\",IF(AND(YEAR(МайНед1+4)=CalendarYear,MONTH(МайНед1+4)=5),МайНед1+4,\"\"))","v":"2019-05-02"},{"$f":"IF(DAY(МайНед1)=1,\"\",IF(AND(YEAR(МайНед1+5)=CalendarYear,MONTH(МайНед1+5)=5),МайНед1+5,\"\"))","v":"2019-05-03"},{"$f":"IF(DAY(МайНед1)=1,\"\",IF(AND(YEAR(МайНед1+6)=CalendarYear,MONTH(МайНед1+6)=5),МайНед1+6,\"\"))","v":"2019-05-04"},{"$f":"IF(DAY(МайНед1)=1,IF(AND(YEAR(МайНед1)=CalendarYear,MONTH(МайНед1)=5),МайНед1,\"\"),IF(AND(YEAR(МайНед1+7)=CalendarYear,MONTH(МайНед1+7)=5),МайНед1+7,\"\"))","v":"2019-05-05"},null,{"$f":"IF(DAY(ЮниНед1)=1,\"\",IF(AND(YEAR(ЮниНед1+1)=CalendarYear,MONTH(ЮниНед1+1)=6),ЮниНед1+1,\"\"))","v":""},{"$f":"IF(DAY(ЮниНед1)=1,\"\",IF(AND(YEAR(ЮниНед1+2)=CalendarYear,MONTH(ЮниНед1+2)=6),ЮниНед1+2,\"\"))","v":""},{"$f":"IF(DAY(ЮниНед1)=1,\"\",IF(AND(YEAR(ЮниНед1+3)=CalendarYear,MONTH(ЮниНед1+3)=6),ЮниНед1+3,\"\"))","v":""},{"$f":"IF(DAY(ЮниНед1)=1,\"\",IF(AND(YEAR(ЮниНед1+4)=CalendarYear,MONTH(ЮниНед1+4)=6),ЮниНед1+4,\"\"))","v":""},{"$f":"IF(DAY(ЮниНед1)=1,\"\",IF(AND(YEAR(ЮниНед1+5)=CalendarYear,MONTH(ЮниНед1+5)=6),ЮниНед1+5,\"\"))","v":""},{"$f":"IF(DAY(ЮниНед1)=1,\"\",IF(AND(YEAR(ЮниНед1+6)=CalendarYear,MONTH(ЮниНед1+6)=6),ЮниНед1+6,\"\"))","v":"2019-06-01"},{"$f":"IF(DAY(ЮниНед1)=1,IF(AND(YEAR(ЮниНед1)=CalendarYear,MONTH(ЮниНед1)=6),ЮниНед1,\"\"),IF(AND(YEAR(ЮниНед1+7)=CalendarYear,MONTH(ЮниНед1+7)=6),ЮниНед1+7,\"\"))","v":"2019-06-02"}]
[null,null,{"$f":"IF(DAY(МайНед1)=1,IF(AND(YEAR(МайНед1+1)=CalendarYear,MONTH(МайНед1+1)=5),МайНед1+1,\"\"),IF(AND(YEAR(МайНед1+8)=CalendarYear,MONTH(МайНед1+8)=5),МайНед1+8,\"\"))","v":"2019-05-06"},{"$f":"IF(DAY(МайНед1)=1,IF(AND(YEAR(МайНед1+2)=CalendarYear,MONTH(МайНед1+2)=5),МайНед1+2,\"\"),IF(AND(YEAR(МайНед1+9)=CalendarYear,MONTH(МайНед1+9)=5),МайНед1+9,\"\"))","v":"2019-05-07"},{"$f":"IF(DAY(МайНед1)=1,IF(AND(YEAR(МайНед1+3)=CalendarYear,MONTH(МайНед1+3)=5),МайНед1+3,\"\"),IF(AND(YEAR(МайНед1+10)=CalendarYear,MONTH(МайНед1+10)=5),МайНед1+10,\"\"))","v":"2019-05-08"},{"$f":"IF(DAY(МайНед1)=1,IF(AND(YEAR(МайНед1+4)=CalendarYear,MONTH(МайНед1+4)=5),МайНед1+4,\"\"),IF(AND(YEAR(МайНед1+11)=CalendarYear,MONTH(МайНед1+11)=5),МайНед1+11,\"\"))","v":"2019-05-09"},{"$f":"IF(DAY(МайНед1)=1,IF(AND(YEAR(МайНед1+5)=CalendarYear,MONTH(МайНед1+5)=5),МайНед1+5,\"\"),IF(AND(YEAR(МайНед1+12)=CalendarYear,MONTH(МайНед1+12)=5),МайНед1+12,\"\"))","v":"2019-05-10"},{"$f":"IF(DAY(МайНед1)=1,IF(AND(YEAR(МайНед1+6)=CalendarYear,MONTH(МайНед1+6)=5),МайНед1+6,\"\"),IF(AND(YEAR(МайНед1+13)=CalendarYear,MONTH(МайНед1+13)=5),МайНед1+13,\"\"))","v":"2019-05-11"},{"$f":"IF(DAY(МайНед1)=1,IF(AND(YEAR(МайНед1+7)=CalendarYear,MONTH(МайНед1+7)=5),МайНед1+7,\"\"),IF(AND(YEAR(МайНед1+14)=CalendarYear,MONTH(МайНед1+14)=5),МайНед1+14,\"\"))","v":"2019-05-12"},null,{"$f":"IF(DAY(ЮниНед1)=1,IF(AND(YEAR(ЮниНед1+1)=CalendarYear,MONTH(ЮниНед1+1)=6),ЮниНед1+1,\"\"),IF(AND(YEAR(ЮниНед1+8)=CalendarYear,MONTH(ЮниНед1+8)=6),ЮниНед1+8,\"\"))","v":"2019-06-03"},{"$f":"IF(DAY(ЮниНед1)=1,IF(AND(YEAR(ЮниНед1+2)=CalendarYear,MONTH(ЮниНед1+2)=6),ЮниНед1+2,\"\"),IF(AND(YEAR(ЮниНед1+9)=CalendarYear,MONTH(ЮниНед1+9)=6),ЮниНед1+9,\"\"))","v":"2019-06-04"},{"$f":"IF(DAY(ЮниНед1)=1,IF(AND(YEAR(ЮниНед1+3)=CalendarYear,MONTH(ЮниНед1+3)=6),ЮниНед1+3,\"\"),IF(AND(YEAR(ЮниНед1+10)=CalendarYear,MONTH(ЮниНед1+10)=6),ЮниНед1+10,\"\"))","v":"2019-06-05"},{"$f":"IF(DAY(ЮниНед1)=1,IF(AND(YEAR(ЮниНед1+4)=CalendarYear,MONTH(ЮниНед1+4)=6),ЮниНед1+4,\"\"),IF(AND(YEAR(ЮниНед1+11)=CalendarYear,MONTH(ЮниНед1+11)=6),ЮниНед1+11,\"\"))","v":"2019-06-06"},{"$f":"IF(DAY(ЮниНед1)=1,IF(AND(YEAR(ЮниНед1+5)=CalendarYear,MONTH(ЮниНед1+5)=6),ЮниНед1+5,\"\"),IF(AND(YEAR(ЮниНед1+12)=CalendarYear,MONTH(ЮниНед1+12)=6),ЮниНед1+12,\"\"))","v":"2019-06-07"},{"$f":"IF(DAY(ЮниНед1)=1,IF(AND(YEAR(ЮниНед1+6)=CalendarYear,MONTH(ЮниНед1+6)=6),ЮниНед1+6,\"\"),IF(AND(YEAR(ЮниНед1+13)=CalendarYear,MONTH(ЮниНед1+13)=6),ЮниНед1+13,\"\"))","v":"2019-06-08"},{"$f":"IF(DAY(ЮниНед1)=1,IF(AND(YEAR(ЮниНед1+7)=CalendarYear,MONTH(ЮниНед1+7)=6),ЮниНед1+7,\"\"),IF(AND(YEAR(ЮниНед1+14)=CalendarYear,MONTH(ЮниНед1+14)=6),ЮниНед1+14,\"\"))","v":"2019-06-09"}]
[null,null,{"$f":"IF(DAY(МайНед1)=1,IF(AND(YEAR(МайНед1+8)=CalendarYear,MONTH(МайНед1+8)=5),МайНед1+8,\"\"),IF(AND(YEAR(МайНед1+15)=CalendarYear,MONTH(МайНед1+15)=5),МайНед1+15,\"\"))","v":"2019-05-13"},{"$f":"IF(DAY(МайНед1)=1,IF(AND(YEAR(МайНед1+9)=CalendarYear,MONTH(МайНед1+9)=5),МайНед1+9,\"\"),IF(AND(YEAR(МайНед1+16)=CalendarYear,MONTH(МайНед1+16)=5),МайНед1+16,\"\"))","v":"2019-05-14"},{"$f":"IF(DAY(МайНед1)=1,IF(AND(YEAR(МайНед1+10)=CalendarYear,MONTH(МайНед1+10)=5),МайНед1+10,\"\"),IF(AND(YEAR(МайНед1+17)=CalendarYear,MONTH(МайНед1+17)=5),МайНед1+17,\"\"))","v":"2019-05-15"},{"$f":"IF(DAY(МайНед1)=1,IF(AND(YEAR(МайНед1+11)=CalendarYear,MONTH(МайНед1+11)=5),МайНед1+11,\"\"),IF(AND(YEAR(МайНед1+18)=CalendarYear,MONTH(МайНед1+18)=5),МайНед1+18,\"\"))","v":"2019-05-16"},{"$f":"IF(DAY(МайНед1)=1,IF(AND(YEAR(МайНед1+12)=CalendarYear,MONTH(МайНед1+12)=5),МайНед1+12,\"\"),IF(AND(YEAR(МайНед1+19)=CalendarYear,MONTH(МайНед1+19)=5),МайНед1+19,\"\"))","v":"2019-05-17"},{"$f":"IF(DAY(МайНед1)=1,IF(AND(YEAR(МайНед1+13)=CalendarYear,MONTH(МайНед1+13)=5),МайНед1+13,\"\"),IF(AND(YEAR(МайНед1+20)=CalendarYear,MONTH(МайНед1+20)=5),МайНед1+20,\"\"))","v":"2019-05-18"},{"$f":"IF(DAY(МайНед1)=1,IF(AND(YEAR(МайНед1+14)=CalendarYear,MONTH(МайНед1+14)=5),МайНед1+14,\"\"),IF(AND(YEAR(МайНед1+21)=CalendarYear,MONTH(МайНед1+21)=5),МайНед1+21,\"\"))","v":"2019-05-19"},null,{"$f":"IF(DAY(ЮниНед1)=1,IF(AND(YEAR(ЮниНед1+8)=CalendarYear,MONTH(ЮниНед1+8)=6),ЮниНед1+8,\"\"),IF(AND(YEAR(ЮниНед1+15)=CalendarYear,MONTH(ЮниНед1+15)=6),ЮниНед1+15,\"\"))","v":"2019-06-10"},{"$f":"IF(DAY(ЮниНед1)=1,IF(AND(YEAR(ЮниНед1+9)=CalendarYear,MONTH(ЮниНед1+9)=6),ЮниНед1+9,\"\"),IF(AND(YEAR(ЮниНед1+16)=CalendarYear,MONTH(ЮниНед1+16)=6),ЮниНед1+16,\"\"))","v":"2019-06-11"},{"$f":"IF(DAY(ЮниНед1)=1,IF(AND(YEAR(ЮниНед1+10)=CalendarYear,MONTH(ЮниНед1+10)=6),ЮниНед1+10,\"\"),IF(AND(YEAR(ЮниНед1+17)=CalendarYear,MONTH(ЮниНед1+17)=6),ЮниНед1+17,\"\"))","v":"2019-06-12"},{"$f":"IF(DAY(ЮниНед1)=1,IF(AND(YEAR(ЮниНед1+11)=CalendarYear,MONTH(ЮниНед1+11)=6),ЮниНед1+11,\"\"),IF(AND(YEAR(ЮниНед1+18)=CalendarYear,MONTH(ЮниНед1+18)=6),ЮниНед1+18,\"\"))","v":"2019-06-13"},{"$f":"IF(DAY(ЮниНед1)=1,IF(AND(YEAR(ЮниНед1+12)=CalendarYear,MONTH(ЮниНед1+12)=6),ЮниНед1+12,\"\"),IF(AND(YEAR(ЮниНед1+19)=CalendarYear,MONTH(ЮниНед1+19)=6),ЮниНед1+19,\"\"))","v":"2019-06-14"},{"$f":"IF(DAY(ЮниНед1)=1,IF(AND(YEAR(ЮниНед1+13)=CalendarYear,MONTH(ЮниНед1+13)=6),ЮниНед1+13,\"\"),IF(AND(YEAR(ЮниНед1+20)=CalendarYear,MONTH(ЮниНед1+20)=6),ЮниНед1+20,\"\"))","v":"2019-06-15"},{"$f":"IF(DAY(ЮниНед1)=1,IF(AND(YEAR(ЮниНед1+14)=CalendarYear,MONTH(ЮниНед1+14)=6),ЮниНед1+14,\"\"),IF(AND(YEAR(ЮниНед1+21)=CalendarYear,MONTH(ЮниНед1+21)=6),ЮниНед1+21,\"\"))","v":"2019-06-16"}]
[null,null,{"$f":"IF(DAY(МайНед1)=1,IF(AND(YEAR(МайНед1+15)=CalendarYear,MONTH(МайНед1+15)=5),МайНед1+15,\"\"),IF(AND(YEAR(МайНед1+22)=CalendarYear,MONTH(МайНед1+22)=5),МайНед1+22,\"\"))","v":"2019-05-20"},{"$f":"IF(DAY(МайНед1)=1,IF(AND(YEAR(МайНед1+16)=CalendarYear,MONTH(МайНед1+16)=5),МайНед1+16,\"\"),IF(AND(YEAR(МайНед1+23)=CalendarYear,MONTH(МайНед1+23)=5),МайНед1+23,\"\"))","v":"2019-05-21"},{"$f":"IF(DAY(МайНед1)=1,IF(AND(YEAR(МайНед1+17)=CalendarYear,MONTH(МайНед1+17)=5),МайНед1+17,\"\"),IF(AND(YEAR(МайНед1+24)=CalendarYear,MONTH(МайНед1+24)=5),МайНед1+24,\"\"))","v":"2019-05-22"},{"$f":"IF(DAY(МайНед1)=1,IF(AND(YEAR(МайНед1+18)=CalendarYear,MONTH(МайНед1+18)=5),МайНед1+18,\"\"),IF(AND(YEAR(МайНед1+25)=CalendarYear,MONTH(МайНед1+25)=5),МайНед1+25,\"\"))","v":"2019-05-23"},{"$f":"IF(DAY(МайНед1)=1,IF(AND(YEAR(МайНед1+19)=CalendarYear,MONTH(МайНед1+19)=5),МайНед1+19,\"\"),IF(AND(YEAR(МайНед1+26)=CalendarYear,MONTH(МайНед1+26)=5),МайНед1+26,\"\"))","v":"2019-05-24"},{"$f":"IF(DAY(МайНед1)=1,IF(AND(YEAR(МайНед1+20)=CalendarYear,MONTH(МайНед1+20)=5),МайНед1+20,\"\"),IF(AND(YEAR(МайНед1+27)=CalendarYear,MONTH(МайНед1+27)=5),МайНед1+27,\"\"))","v":"2019-05-25"},{"$f":"IF(DAY(МайНед1)=1,IF(AND(YEAR(МайНед1+21)=CalendarYear,MONTH(МайНед1+21)=5),МайНед1+21,\"\"),IF(AND(YEAR(МайНед1+28)=CalendarYear,MONTH(МайНед1+28)=5),МайНед1+28,\"\"))","v":"2019-05-26"},null,{"$f":"IF(DAY(ЮниНед1)=1,IF(AND(YEAR(ЮниНед1+15)=CalendarYear,MONTH(ЮниНед1+15)=6),ЮниНед1+15,\"\"),IF(AND(YEAR(ЮниНед1+22)=CalendarYear,MONTH(ЮниНед1+22)=6),ЮниНед1+22,\"\"))","v":"2019-06-17"},{"$f":"IF(DAY(ЮниНед1)=1,IF(AND(YEAR(ЮниНед1+16)=CalendarYear,MONTH(ЮниНед1+16)=6),ЮниНед1+16,\"\"),IF(AND(YEAR(ЮниНед1+23)=CalendarYear,MONTH(ЮниНед1+23)=6),ЮниНед1+23,\"\"))","v":"2019-06-18"},{"$f":"IF(DAY(ЮниНед1)=1,IF(AND(YEAR(ЮниНед1+17)=CalendarYear,MONTH(ЮниНед1+17)=6),ЮниНед1+17,\"\"),IF(AND(YEAR(ЮниНед1+24)=CalendarYear,MONTH(ЮниНед1+24)=6),ЮниНед1+24,\"\"))","v":"2019-06-19"},{"$f":"IF(DAY(ЮниНед1)=1,IF(AND(YEAR(ЮниНед1+18)=CalendarYear,MONTH(ЮниНед1+18)=6),ЮниНед1+18,\"\"),IF(AND(YEAR(ЮниНед1+25)=CalendarYear,MONTH(ЮниНед1+25)=6),ЮниНед1+25,\"\"))","v":"2019-06-20"},{"$f":"IF(DAY(ЮниНед1)=1,IF(AND(YEAR(ЮниНед1+19)=CalendarYear,MONTH(ЮниНед1+19)=6),ЮниНед1+19,\"\"),IF(AND(YEAR(ЮниНед1+26)=CalendarYear,MONTH(ЮниНед1+26)=6),ЮниНед1+26,\"\"))","v":"2019-06-21"},{"$f":"IF(DAY(ЮниНед1)=1,IF(AND(YEAR(ЮниНед1+20)=CalendarYear,MONTH(ЮниНед1+20)=6),ЮниНед1+20,\"\"),IF(AND(YEAR(ЮниНед1+27)=CalendarYear,MONTH(ЮниНед1+27)=6),ЮниНед1+27,\"\"))","v":"2019-06-22"},{"$f":"IF(DAY(ЮниНед1)=1,IF(AND(YEAR(ЮниНед1+21)=CalendarYear,MONTH(ЮниНед1+21)=6),ЮниНед1+21,\"\"),IF(AND(YEAR(ЮниНед1+28)=CalendarYear,MONTH(ЮниНед1+28)=6),ЮниНед1+28,\"\"))","v":"2019-06-23"}]
[null,null,{"$f":"IF(DAY(МайНед1)=1,IF(AND(YEAR(МайНед1+22)=CalendarYear,MONTH(МайНед1+22)=5),МайНед1+22,\"\"),IF(AND(YEAR(МайНед1+29)=CalendarYear,MONTH(МайНед1+29)=5),МайНед1+29,\"\"))","v":"2019-05-27"},{"$f":"IF(DAY(МайНед1)=1,IF(AND(YEAR(МайНед1+23)=CalendarYear,MONTH(МайНед1+23)=5),МайНед1+23,\"\"),IF(AND(YEAR(МайНед1+30)=CalendarYear,MONTH(МайНед1+30)=5),МайНед1+30,\"\"))","v":"2019-05-28"},{"$f":"IF(DAY(МайНед1)=1,IF(AND(YEAR(МайНед1+24)=CalendarYear,MONTH(МайНед1+24)=5),МайНед1+24,\"\"),IF(AND(YEAR(МайНед1+31)=CalendarYear,MONTH(МайНед1+31)=5),МайНед1+31,\"\"))","v":"2019-05-29"},{"$f":"IF(DAY(МайНед1)=1,IF(AND(YEAR(МайНед1+25)=CalendarYear,MONTH(МайНед1+25)=5),МайНед1+25,\"\"),IF(AND(YEAR(МайНед1+32)=CalendarYear,MONTH(МайНед1+32)=5),МайНед1+32,\"\"))","v":"2019-05-30"},{"$f":"IF(DAY(МайНед1)=1,IF(AND(YEAR(МайНед1+26)=CalendarYear,MONTH(МайНед1+26)=5),МайНед1+26,\"\"),IF(AND(YEAR(МайНед1+33)=CalendarYear,MONTH(МайНед1+33)=5),МайНед1+33,\"\"))","v":"2019-05-31"},{"$f":"IF(DAY(МайНед1)=1,IF(AND(YEAR(МайНед1+27)=CalendarYear,MONTH(МайНед1+27)=5),МайНед1+27,\"\"),IF(AND(YEAR(МайНед1+34)=CalendarYear,MONTH(МайНед1+34)=5),МайНед1+34,\"\"))","v":""},{"$f":"IF(DAY(МайНед1)=1,IF(AND(YEAR(МайНед1+28)=CalendarYear,MONTH(МайНед1+28)=5),МайНед1+28,\"\"),IF(AND(YEAR(МайНед1+35)=CalendarYear,MONTH(МайНед1+35)=5),МайНед1+35,\"\"))","v":""},null,{"$f":"IF(DAY(ЮниНед1)=1,IF(AND(YEAR(ЮниНед1+22)=CalendarYear,MONTH(ЮниНед1+22)=6),ЮниНед1+22,\"\"),IF(AND(YEAR(ЮниНед1+29)=CalendarYear,MONTH(ЮниНед1+29)=6),ЮниНед1+29,\"\"))","v":"2019-06-24"},{"$f":"IF(DAY(ЮниНед1)=1,IF(AND(YEAR(ЮниНед1+23)=CalendarYear,MONTH(ЮниНед1+23)=6),ЮниНед1+23,\"\"),IF(AND(YEAR(ЮниНед1+30)=CalendarYear,MONTH(ЮниНед1+30)=6),ЮниНед1+30,\"\"))","v":"2019-06-25"},{"$f":"IF(DAY(ЮниНед1)=1,IF(AND(YEAR(ЮниНед1+24)=CalendarYear,MONTH(ЮниНед1+24)=6),ЮниНед1+24,\"\"),IF(AND(YEAR(ЮниНед1+31)=CalendarYear,MONTH(ЮниНед1+31)=6),ЮниНед1+31,\"\"))","v":"2019-06-26"},{"$f":"IF(DAY(ЮниНед1)=1,IF(AND(YEAR(ЮниНед1+25)=CalendarYear,MONTH(ЮниНед1+25)=6),ЮниНед1+25,\"\"),IF(AND(YEAR(ЮниНед1+32)=CalendarYear,MONTH(ЮниНед1+32)=6),ЮниНед1+32,\"\"))","v":"2019-06-27"},{"$f":"IF(DAY(ЮниНед1)=1,IF(AND(YEAR(ЮниНед1+26)=CalendarYear,MONTH(ЮниНед1+26)=6),ЮниНед1+26,\"\"),IF(AND(YEAR(ЮниНед1+33)=CalendarYear,MONTH(ЮниНед1+33)=6),ЮниНед1+33,\"\"))","v":"2019-06-28"},{"$f":"IF(DAY(ЮниНед1)=1,IF(AND(YEAR(ЮниНед1+27)=CalendarYear,MONTH(ЮниНед1+27)=6),ЮниНед1+27,\"\"),IF(AND(YEAR(ЮниНед1+34)=CalendarYear,MONTH(ЮниНед1+34)=6),ЮниНед1+34,\"\"))","v":"2019-06-29"},{"$f":"IF(DAY(ЮниНед1)=1,IF(AND(YEAR(ЮниНед1+28)=CalendarYear,MONTH(ЮниНед1+28)=6),ЮниНед1+28,\"\"),IF(AND(YEAR(ЮниНед1+35)=CalendarYear,MONTH(ЮниНед1+35)=6),ЮниНед1+35,\"\"))","v":"2019-06-30"}]
[null,null,{"$f":"IF(DAY(МайНед1)=1,IF(AND(YEAR(МайНед1+29)=CalendarYear,MONTH(МайНед1+29)=5),МайНед1+29,\"\"),IF(AND(YEAR(МайНед1+36)=CalendarYear,MONTH(МайНед1+36)=5),МайНед1+36,\"\"))","v":""},{"$f":"IF(DAY(МайНед1)=1,IF(AND(YEAR(МайНед1+30)=CalendarYear,MONTH(МайНед1+30)=5),МайНед1+30,\"\"),IF(AND(YEAR(МайНед1+37)=CalendarYear,MONTH(МайНед1+37)=5),МайНед1+37,\"\"))","v":""},{"$f":"IF(DAY(МайНед1)=1,IF(AND(YEAR(МайНед1+31)=CalendarYear,MONTH(МайНед1+31)=5),МайНед1+31,\"\"),IF(AND(YEAR(МайНед1+38)=CalendarYear,MONTH(МайНед1+38)=5),МайНед1+38,\"\"))","v":""},{"$f":"IF(DAY(МайНед1)=1,IF(AND(YEAR(МайНед1+32)=CalendarYear,MONTH(МайНед1+32)=5),МайНед1+32,\"\"),IF(AND(YEAR(МайНед1+39)=CalendarYear,MONTH(МайНед1+39)=5),МайНед1+39,\"\"))","v":""},{"$f":"IF(DAY(МайНед1)=1,IF(AND(YEAR(МайНед1+33)=CalendarYear,MONTH(МайНед1+33)=5),МайНед1+33,\"\"),IF(AND(YEAR(МайНед1+40)=CalendarYear,MONTH(МайНед1+40)=5),МайНед1+40,\"\"))","v":""},{"$f":"IF(DAY(МайНед1)=1,IF(AND(YEAR(МайНед1+34)=CalendarYear,MONTH(МайНед1+34)=5),МайНед1+34,\"\"),IF(AND(YEAR(МайНед1+41)=CalendarYear,MONTH(МайНед1+41)=5),МайНед1+41,\"\"))","v":""},{"$f":"IF(DAY(МайНед1)=1,IF(AND(YEAR(МайНед1+35)=CalendarYear,MONTH(МайНед1+35)=5),МайНед1+35,\"\"),IF(AND(YEAR(МайНед1+42)=CalendarYear,MONTH(МайНед1+42)=5),МайНед1+42,\"\"))","v":""},null,{"$f":"IF(DAY(ЮниНед1)=1,IF(AND(YEAR(ЮниНед1+29)=CalendarYear,MONTH(ЮниНед1+29)=6),ЮниНед1+29,\"\"),IF(AND(YEAR(ЮниНед1+36)=CalendarYear,MONTH(ЮниНед1+36)=6),ЮниНед1+36,\"\"))","v":""},{"$f":"IF(DAY(ЮниНед1)=1,IF(AND(YEAR(ЮниНед1+30)=CalendarYear,MONTH(ЮниНед1+30)=6),ЮниНед1+30,\"\"),IF(AND(YEAR(ЮниНед1+37)=CalendarYear,MONTH(ЮниНед1+37)=6),ЮниНед1+37,\"\"))","v":""},{"$f":"IF(DAY(ЮниНед1)=1,IF(AND(YEAR(ЮниНед1+31)=CalendarYear,MONTH(ЮниНед1+31)=6),ЮниНед1+31,\"\"),IF(AND(YEAR(ЮниНед1+38)=CalendarYear,MONTH(ЮниНед1+38)=6),ЮниНед1+38,\"\"))","v":""},{"$f":"IF(DAY(ЮниНед1)=1,IF(AND(YEAR(ЮниНед1+32)=CalendarYear,MONTH(ЮниНед1+32)=6),ЮниНед1+32,\"\"),IF(AND(YEAR(ЮниНед1+39)=CalendarYear,MONTH(ЮниНед1+39)=6),ЮниНед1+39,\"\"))","v":""},{"$f":"IF(DAY(ЮниНед1)=1,IF(AND(YEAR(ЮниНед1+33)=CalendarYear,MONTH(ЮниНед1+33)=6),ЮниНед1+33,\"\"),IF(AND(YEAR(ЮниНед1+40)=CalendarYear,MONTH(ЮниНед1+40)=6),ЮниНед1+40,\"\"))","v":""},{"$f":"IF(DAY(ЮниНед1)=1,IF(AND(YEAR(ЮниНед1+34)=CalendarYear,MONTH(ЮниНед1+34)=6),ЮниНед1+34,\"\"),IF(AND(YEAR(ЮниНед1+41)=CalendarYear,MONTH(ЮниНед1+41)=6),ЮниНед1+41,\"\"))","v":""},{"$f":"IF(DAY(ЮниНед1)=1,IF(AND(YEAR(ЮниНед1+35)=CalendarYear,MONTH(ЮниНед1+35)=6),ЮниНед1+35,\"\"),IF(AND(YEAR(ЮниНед1+42)=CalendarYear,MONTH(ЮниНед1+42)=6),ЮниНед1+42,\"\"))","v":""}]
[]
[null,null,"ЮЛИ",{"$nulls":7},"АВГУСТ"]
[null,null,"П","В","С","Ч","П","С","Н",null,"П","В","С","Ч","П","С","Н"]
[null,null,{"$f":"IF(DAY(ЮлиНед1)=1,\"\",IF(AND(YEAR(ЮлиНед1+1)=CalendarYear,MONTH(ЮлиНед1+1)=7),ЮлиНед1+1,\"\"))","v":"2019-07-01"},{"$f":"IF(DAY(ЮлиНед1)=1,\"\",IF(AND(YEAR(ЮлиНед1+2)=CalendarYear,MONTH(ЮлиНед1+2)=7),ЮлиНед1+2,\"\"))","v":"2019-07-02"},{"$f":"IF(DAY(ЮлиНед1)=1,\"\",IF(AND(YEAR(ЮлиНед1+3)=CalendarYear,MONTH(ЮлиНед1+3)=7),ЮлиНед1+3,\"\"))","v":"2019-07-03"},{"$f":"IF(DAY(ЮлиНед1)=1,\"\",IF(AND(YEAR(ЮлиНед1+4)=CalendarYear,MONTH(ЮлиНед1+4)=7),ЮлиНед1+4,\"\"))","v":"2019-07-04"},{"$f":"IF(DAY(ЮлиНед1)=1,\"\",IF(AND(YEAR(ЮлиНед1+5)=CalendarYear,MONTH(ЮлиНед1+5)=7),ЮлиНед1+5,\"\"))","v":"2019-07-05"},{"$f":"IF(DAY(ЮлиНед1)=1,\"\",IF(AND(YEAR(ЮлиНед1+6)=CalendarYear,MONTH(ЮлиНед1+6)=7),ЮлиНед1+6,\"\"))","v":"2019-07-06"},{"$f":"IF(DAY(ЮлиНед1)=1,IF(AND(YEAR(ЮлиНед1)=CalendarYear,MONTH(ЮлиНед1)=7),ЮлиНед1,\"\"),IF(AND(YEAR(ЮлиНед1+7)=CalendarYear,MONTH(ЮлиНед1+7)=7),ЮлиНед1+7,\"\"))","v":"2019-07-07"},null,{"$f":"IF(DAY(АвгНед1)=1,\"\",IF(AND(YEAR(АвгНед1+1)=CalendarYear,MONTH(АвгНед1+1)=8),АвгНед1+1,\"\"))","v":""},{"$f":"IF(DAY(АвгНед1)=1,\"\",IF(AND(YEAR(АвгНед1+2)=CalendarYear,MONTH(АвгНед1+2)=8),АвгНед1+2,\"\"))","v":""},{"$f":"IF(DAY(АвгНед1)=1,\"\",IF(AND(YEAR(АвгНед1+3)=CalendarYear,MONTH(АвгНед1+3)=8),АвгНед1+3,\"\"))","v":""},{"$f":"IF(DAY(АвгНед1)=1,\"\",IF(AND(YEAR(АвгНед1+4)=CalendarYear,MONTH(АвгНед1+4)=8),АвгНед1+4,\"\"))","v":"2019-08-01"},{"$f":"IF(DAY(АвгНед1)=1,\"\",IF(AND(YEAR(АвгНед1+5)=CalendarYear,MONTH(АвгНед1+5)=8),АвгНед1+5,\"\"))","v":"2019-08-02"},{"$f":"IF(DAY(АвгНед1)=1,\"\",IF(AND(YEAR(АвгНед1+6)=CalendarYear,MONTH(АвгНед1+6)=8),АвгНед1+6,\"\"))","v":"2019-08-03"},{"$f":"IF(DAY(АвгНед1)=1,IF(AND(YEAR(АвгНед1)=CalendarYear,MONTH(АвгНед1)=8),АвгНед1,\"\"),IF(AND(YEAR(АвгНед1+7)=CalendarYear,MONTH(АвгНед1+7)=8),АвгНед1+7,\"\"))","v":"2019-08-04"}]
[null,null,{"$f":"IF(DAY(ЮлиНед1)=1,IF(AND(YEAR(ЮлиНед1+1)=CalendarYear,MONTH(ЮлиНед1+1)=7),ЮлиНед1+1,\"\"),IF(AND(YEAR(ЮлиНед1+8)=CalendarYear,MONTH(ЮлиНед1+8)=7),ЮлиНед1+8,\"\"))","v":"2019-07-08"},{"$f":"IF(DAY(ЮлиНед1)=1,IF(AND(YEAR(ЮлиНед1+2)=CalendarYear,MONTH(ЮлиНед1+2)=7),ЮлиНед1+2,\"\"),IF(AND(YEAR(ЮлиНед1+9)=CalendarYear,MONTH(ЮлиНед1+9)=7),ЮлиНед1+9,\"\"))","v":"2019-07-09"},{"$f":"IF(DAY(ЮлиНед1)=1,IF(AND(YEAR(ЮлиНед1+3)=CalendarYear,MONTH(ЮлиНед1+3)=7),ЮлиНед1+3,\"\"),IF(AND(YEAR(ЮлиНед1+10)=CalendarYear,MONTH(ЮлиНед1+10)=7),ЮлиНед1+10,\"\"))","v":"2019-07-10"},{"$f":"IF(DAY(ЮлиНед1)=1,IF(AND(YEAR(ЮлиНед1+4)=CalendarYear,MONTH(ЮлиНед1+4)=7),ЮлиНед1+4,\"\"),IF(AND(YEAR(ЮлиНед1+11)=CalendarYear,MONTH(ЮлиНед1+11)=7),ЮлиНед1+11,\"\"))","v":"2019-07-11"},{"$f":"IF(DAY(ЮлиНед1)=1,IF(AND(YEAR(ЮлиНед1+5)=CalendarYear,MONTH(ЮлиНед1+5)=7),ЮлиНед1+5,\"\"),IF(AND(YEAR(ЮлиНед1+12)=CalendarYear,MONTH(ЮлиНед1+12)=7),ЮлиНед1+12,\"\"))","v":"2019-07-12"},{"$f":"IF(DAY(ЮлиНед1)=1,IF(AND(YEAR(ЮлиНед1+6)=CalendarYear,MONTH(ЮлиНед1+6)=7),ЮлиНед1+6,\"\"),IF(AND(YEAR(ЮлиНед1+13)=CalendarYear,MONTH(ЮлиНед1+13)=7),ЮлиНед1+13,\"\"))","v":"2019-07-13"},{"$f":"IF(DAY(ЮлиНед1)=1,IF(AND(YEAR(ЮлиНед1+7)=CalendarYear,MONTH(ЮлиНед1+7)=7),ЮлиНед1+7,\"\"),IF(AND(YEAR(ЮлиНед1+14)=CalendarYear,MONTH(ЮлиНед1+14)=7),ЮлиНед1+14,\"\"))","v":"2019-07-14"},null,{"$f":"IF(DAY(АвгНед1)=1,IF(AND(YEAR(АвгНед1+1)=CalendarYear,MONTH(АвгНед1+1)=8),АвгНед1+1,\"\"),IF(AND(YEAR(АвгНед1+8)=CalendarYear,MONTH(АвгНед1+8)=8),АвгНед1+8,\"\"))","v":"2019-08-05"},{"$f":"IF(DAY(АвгНед1)=1,IF(AND(YEAR(АвгНед1+2)=CalendarYear,MONTH(АвгНед1+2)=8),АвгНед1+2,\"\"),IF(AND(YEAR(АвгНед1+9)=CalendarYear,MONTH(АвгНед1+9)=8),АвгНед1+9,\"\"))","v":"2019-08-06"},{"$f":"IF(DAY(АвгНед1)=1,IF(AND(YEAR(АвгНед1+3)=CalendarYear,MONTH(АвгНед1+3)=8),АвгНед1+3,\"\"),IF(AND(YEAR(АвгНед1+10)=CalendarYear,MONTH(АвгНед1+10)=8),АвгНед1+10,\"\"))","v":"2019-08-07"},{"$f":"IF(DAY(АвгНед1)=1,IF(AND(YEAR(АвгНед1+4)=CalendarYear,MONTH(АвгНед1+4)=8),АвгНед1+4,\"\"),IF(AND(YEAR(АвгНед1+11)=CalendarYear,MONTH(АвгНед1+11)=8),АвгНед1+11,\"\"))","v":"2019-08-08"},{"$f":"IF(DAY(АвгНед1)=1,IF(AND(YEAR(АвгНед1+5)=CalendarYear,MONTH(АвгНед1+5)=8),АвгНед1+5,\"\"),IF(AND(YEAR(АвгНед1+12)=CalendarYear,MONTH(АвгНед1+12)=8),АвгНед1+12,\"\"))","v":"2019-08-09"},{"$f":"IF(DAY(АвгНед1)=1,IF(AND(YEAR(АвгНед1+6)=CalendarYear,MONTH(АвгНед1+6)=8),АвгНед1+6,\"\"),IF(AND(YEAR(АвгНед1+13)=CalendarYear,MONTH(АвгНед1+13)=8),АвгНед1+13,\"\"))","v":"2019-08-10"},{"$f":"IF(DAY(АвгНед1)=1,IF(AND(YEAR(АвгНед1+7)=CalendarYear,MONTH(АвгНед1+7)=8),АвгНед1+7,\"\"),IF(AND(YEAR(АвгНед1+14)=CalendarYear,MONTH(АвгНед1+14)=8),АвгНед1+14,\"\"))","v":"2019-08-11"}]
[null,null,{"$f":"IF(DAY(ЮлиНед1)=1,IF(AND(YEAR(ЮлиНед1+8)=CalendarYear,MONTH(ЮлиНед1+8)=7),ЮлиНед1+8,\"\"),IF(AND(YEAR(ЮлиНед1+15)=CalendarYear,MONTH(ЮлиНед1+15)=7),ЮлиНед1+15,\"\"))","v":"2019-07-15"},{"$f":"IF(DAY(ЮлиНед1)=1,IF(AND(YEAR(ЮлиНед1+9)=CalendarYear,MONTH(ЮлиНед1+9)=7),ЮлиНед1+9,\"\"),IF(AND(YEAR(ЮлиНед1+16)=CalendarYear,MONTH(ЮлиНед1+16)=7),ЮлиНед1+16,\"\"))","v":"2019-07-16"},{"$f":"IF(DAY(ЮлиНед1)=1,IF(AND(YEAR(ЮлиНед1+10)=CalendarYear,MONTH(ЮлиНед1+10)=7),ЮлиНед1+10,\"\"),IF(AND(YEAR(ЮлиНед1+17)=CalendarYear,MONTH(ЮлиНед1+17)=7),ЮлиНед1+17,\"\"))","v":"2019-07-17"},{"$f":"IF(DAY(ЮлиНед1)=1,IF(AND(YEAR(ЮлиНед1+11)=CalendarYear,MONTH(ЮлиНед1+11)=7),ЮлиНед1+11,\"\"),IF(AND(YEAR(ЮлиНед1+18)=CalendarYear,MONTH(ЮлиНед1+18)=7),ЮлиНед1+18,\"\"))","v":"2019-07-18"},{"$f":"IF(DAY(ЮлиНед1)=1,IF(AND(YEAR(ЮлиНед1+12)=CalendarYear,MONTH(ЮлиНед1+12)=7),ЮлиНед1+12,\"\"),IF(AND(YEAR(ЮлиНед1+19)=CalendarYear,MONTH(ЮлиНед1+19)=7),ЮлиНед1+19,\"\"))","v":"2019-07-19"},{"$f":"IF(DAY(ЮлиНед1)=1,IF(AND(YEAR(ЮлиНед1+13)=CalendarYear,MONTH(ЮлиНед1+13)=7),ЮлиНед1+13,\"\"),IF(AND(YEAR(ЮлиНед1+20)=CalendarYear,MONTH(ЮлиНед1+20)=7),ЮлиНед1+20,\"\"))","v":"2019-07-20"},{"$f":"IF(DAY(ЮлиНед1)=1,IF(AND(YEAR(ЮлиНед1+14)=CalendarYear,MONTH(ЮлиНед1+14)=7),ЮлиНед1+14,\"\"),IF(AND(YEAR(ЮлиНед1+21)=CalendarYear,MONTH(ЮлиНед1+21)=7),ЮлиНед1+21,\"\"))","v":"2019-07-21"},null,{"$f":"IF(DAY(АвгНед1)=1,IF(AND(YEAR(АвгНед1+8)=CalendarYear,MONTH(АвгНед1+8)=8),АвгНед1+8,\"\"),IF(AND(YEAR(АвгНед1+15)=CalendarYear,MONTH(АвгНед1+15)=8),АвгНед1+15,\"\"))","v":"2019-08-12"},{"$f":"IF(DAY(АвгНед1)=1,IF(AND(YEAR(АвгНед1+9)=CalendarYear,MONTH(АвгНед1+9)=8),АвгНед1+9,\"\"),IF(AND(YEAR(АвгНед1+16)=CalendarYear,MONTH(АвгНед1+16)=8),АвгНед1+16,\"\"))","v":"2019-08-13"},{"$f":"IF(DAY(АвгНед1)=1,IF(AND(YEAR(АвгНед1+10)=CalendarYear,MONTH(АвгНед1+10)=8),АвгНед1+10,\"\"),IF(AND(YEAR(АвгНед1+17)=CalendarYear,MONTH(АвгНед1+17)=8),АвгНед1+17,\"\"))","v":"2019-08-14"},{"$f":"IF(DAY(АвгНед1)=1,IF(AND(YEAR(АвгНед1+11)=CalendarYear,MONTH(АвгНед1+11)=8),АвгНед1+11,\"\"),IF(AND(YEAR(АвгНед1+18)=CalendarYear,MONTH(АвгНед1+18)=8),АвгНед1+18,\"\"))","v":"2019-08-15"},{"$f":"IF(DAY(АвгНед1)=1,IF(AND(YEAR(АвгНед1+12)=CalendarYear,MONTH(АвгНед1+12)=8),АвгНед1+12,\"\"),IF(AND(YEAR(АвгНед1+19)=CalendarYear,MONTH(АвгНед1+19)=8),АвгНед1+19,\"\"))","v":"2019-08-16"},{"$f":"IF(DAY(АвгНед1)=1,IF(AND(YEAR(АвгНед1+13)=CalendarYear,MONTH(АвгНед1+13)=8),АвгНед1+13,\"\"),IF(AND(YEAR(АвгНед1+20)=CalendarYear,MONTH(АвгНед1+20)=8),АвгНед1+20,\"\"))","v":"2019-08-17"},{"$f":"IF(DAY(АвгНед1)=1,IF(AND(YEAR(АвгНед1+14)=CalendarYear,MONTH(АвгНед1+14)=8),АвгНед1+14,\"\"),IF(AND(YEAR(АвгНед1+21)=CalendarYear,MONTH(АвгНед1+21)=8),АвгНед1+21,\"\"))","v":"2019-08-18"}]
[null,null,{"$f":"IF(DAY(ЮлиНед1)=1,IF(AND(YEAR(ЮлиНед1+15)=CalendarYear,MONTH(ЮлиНед1+15)=7),ЮлиНед1+15,\"\"),IF(AND(YEAR(ЮлиНед1+22)=CalendarYear,MONTH(ЮлиНед1+22)=7),ЮлиНед1+22,\"\"))","v":"2019-07-22"},{"$f":"IF(DAY(ЮлиНед1)=1,IF(AND(YEAR(ЮлиНед1+16)=CalendarYear,MONTH(ЮлиНед1+16)=7),ЮлиНед1+16,\"\"),IF(AND(YEAR(ЮлиНед1+23)=CalendarYear,MONTH(ЮлиНед1+23)=7),ЮлиНед1+23,\"\"))","v":"2019-07-23"},{"$f":"IF(DAY(ЮлиНед1)=1,IF(AND(YEAR(ЮлиНед1+17)=CalendarYear,MONTH(ЮлиНед1+17)=7),ЮлиНед1+17,\"\"),IF(AND(YEAR(ЮлиНед1+24)=CalendarYear,MONTH(ЮлиНед1+24)=7),ЮлиНед1+24,\"\"))","v":"2019-07-24"},{"$f":"IF(DAY(ЮлиНед1)=1,IF(AND(YEAR(ЮлиНед1+18)=CalendarYear,MONTH(ЮлиНед1+18)=7),ЮлиНед1+18,\"\"),IF(AND(YEAR(ЮлиНед1+25)=CalendarYear,MONTH(ЮлиНед1+25)=7),ЮлиНед1+25,\"\"))","v":"2019-07-25"},{"$f":"IF(DAY(ЮлиНед1)=1,IF(AND(YEAR(ЮлиНед1+19)=CalendarYear,MONTH(ЮлиНед1+19)=7),ЮлиНед1+19,\"\"),IF(AND(YEAR(ЮлиНед1+26)=CalendarYear,MONTH(ЮлиНед1+26)=7),ЮлиНед1+26,\"\"))","v":"2019-07-26"},{"$f":"IF(DAY(ЮлиНед1)=1,IF(AND(YEAR(ЮлиНед1+20)=CalendarYear,MONTH(ЮлиНед1+20)=7),ЮлиНед1+20,\"\"),IF(AND(YEAR(ЮлиНед1+27)=CalendarYear,MONTH(ЮлиНед1+27)=7),ЮлиНед1+27,\"\"))","v":"2019-07-27"},{"$f":"IF(DAY(ЮлиНед1)=1,IF(AND(YEAR(ЮлиНед1+21)=CalendarYear,MONTH(ЮлиНед1+21)=7),ЮлиНед1+21,\"\"),IF(AND(YEAR(ЮлиНед1+28)=CalendarYear,MONTH(ЮлиНед1+28)=7),ЮлиНед1+28,\"\"))","v":"2019-07-28"},null,{"$f":"IF(DAY(АвгНед1)=1,IF(AND(YEAR(АвгНед1+15)=CalendarYear,MONTH(АвгНед1+15)=8),АвгНед1+15,\"\"),IF(AND(YEAR(АвгНед1+22)=CalendarYear,MONTH(АвгНед1+22)=8),АвгНед1+22,\"\"))","v":"2019-08-19"},{"$f":"IF(DAY(АвгНед1)=1,IF(AND(YEAR(АвгНед1+16)=CalendarYear,MONTH(АвгНед1+16)=8),АвгНед1+16,\"\"),IF(AND(YEAR(АвгНед1+23)=CalendarYear,MONTH(АвгНед1+23)=8),АвгНед1+23,\"\"))","v":"2019-08-20"},{"$f":"IF(DAY(АвгНед1)=1,IF(AND(YEAR(АвгНед1+17)=CalendarYear,MONTH(АвгНед1+17)=8),АвгНед1+17,\"\"),IF(AND(YEAR(АвгНед1+24)=CalendarYear,MONTH(АвгНед1+24)=8),АвгНед1+24,\"\"))","v":"2019-08-21"},{"$f":"IF(DAY(АвгНед1)=1,IF(AND(YEAR(АвгНед1+18)=CalendarYear,MONTH(АвгНед1+18)=8),АвгНед1+18,\"\"),IF(AND(YEAR(АвгНед1+25)=CalendarYear,MONTH(АвгНед1+25)=8),АвгНед1+25,\"\"))","v":"2019-08-22"},{"$f":"IF(DAY(АвгНед1)=1,IF(AND(YEAR(АвгНед1+19)=CalendarYear,MONTH(АвгНед1+19)=8),АвгНед1+19,\"\"),IF(AND(YEAR(АвгНед1+26)=CalendarYear,MONTH(АвгНед1+26)=8),АвгНед1+26,\"\"))","v":"2019-08-23"},{"$f":"IF(DAY(АвгНед1)=1,IF(AND(YEAR(АвгНед1+20)=CalendarYear,MONTH(АвгНед1+20)=8),АвгНед1+20,\"\"),IF(AND(YEAR(АвгНед1+27)=CalendarYear,MONTH(АвгНед1+27)=8),АвгНед1+27,\"\"))","v":"2019-08-24"},{"$f":"IF(DAY(АвгНед1)=1,IF(AND(YEAR(АвгНед1+21)=CalendarYear,MONTH(АвгНед1+21)=8),АвгНед1+21,\"\"),IF(AND(YEAR(АвгНед1+28)=CalendarYear,MONTH(АвгНед1+28)=8),АвгНед1+28,\"\"))","v":"2019-08-25"}]
[null,null,{"$f":"IF(DAY(ЮлиНед1)=1,IF(AND(YEAR(ЮлиНед1+22)=CalendarYear,MONTH(ЮлиНед1+22)=7),ЮлиНед1+22,\"\"),IF(AND(YEAR(ЮлиНед1+29)=CalendarYear,MONTH(ЮлиНед1+29)=7),ЮлиНед1+29,\"\"))","v":"2019-07-29"},{"$f":"IF(DAY(ЮлиНед1)=1,IF(AND(YEAR(ЮлиНед1+23)=CalendarYear,MONTH(ЮлиНед1+23)=7),ЮлиНед1+23,\"\"),IF(AND(YEAR(ЮлиНед1+30)=CalendarYear,MONTH(ЮлиНед1+30)=7),ЮлиНед1+30,\"\"))","v":"2019-07-30"},{"$f":"IF(DAY(ЮлиНед1)=1,IF(AND(YEAR(ЮлиНед1+24)=CalendarYear,MONTH(ЮлиНед1+24)=7),ЮлиНед1+24,\"\"),IF(AND(YEAR(ЮлиНед1+31)=CalendarYear,MONTH(ЮлиНед1+31)=7),ЮлиНед1+31,\"\"))","v":"2019-07-31"},{"$f":"IF(DAY(ЮлиНед1)=1,IF(AND(YEAR(ЮлиНед1+25)=CalendarYear,MONTH(ЮлиНед1+25)=7),ЮлиНед1+25,\"\"),IF(AND(YEAR(ЮлиНед1+32)=CalendarYear,MONTH(ЮлиНед1+32)=7),ЮлиНед1+32,\"\"))","v":""},{"$f":"IF(DAY(ЮлиНед1)=1,IF(AND(YEAR(ЮлиНед1+26)=CalendarYear,MONTH(ЮлиНед1+26)=7),ЮлиНед1+26,\"\"),IF(AND(YEAR(ЮлиНед1+33)=CalendarYear,MONTH(ЮлиНед1+33)=7),ЮлиНед1+33,\"\"))","v":""},{"$f":"IF(DAY(ЮлиНед1)=1,IF(AND(YEAR(ЮлиНед1+27)=CalendarYear,MONTH(ЮлиНед1+27)=7),ЮлиНед1+27,\"\"),IF(AND(YEAR(ЮлиНед1+34)=CalendarYear,MONTH(ЮлиНед1+34)=7),ЮлиНед1+34,\"\"))","v":""},{"$f":"IF(DAY(ЮлиНед1)=1,IF(AND(YEAR(ЮлиНед1+28)=CalendarYear,MONTH(ЮлиНед1+28)=7),ЮлиНед1+28,\"\"),IF(AND(YEAR(ЮлиНед1+35)=CalendarYear,MONTH(ЮлиНед1+35)=7),ЮлиНед1+35,\"\"))","v":""},null,{"$f":"IF(DAY(АвгНед1)=1,IF(AND(YEAR(АвгНед1+22)=CalendarYear,MONTH(АвгНед1+22)=8),АвгНед1+22,\"\"),IF(AND(YEAR(АвгНед1+29)=CalendarYear,MONTH(АвгНед1+29)=8),АвгНед1+29,\"\"))","v":"2019-08-26"},{"$f":"IF(DAY(АвгНед1)=1,IF(AND(YEAR(АвгНед1+23)=CalendarYear,MONTH(АвгНед1+23)=8),АвгНед1+23,\"\"),IF(AND(YEAR(АвгНед1+30)=CalendarYear,MONTH(АвгНед1+30)=8),АвгНед1+30,\"\"))","v":"2019-08-27"},{"$f":"IF(DAY(АвгНед1)=1,IF(AND(YEAR(АвгНед1+24)=CalendarYear,MONTH(АвгНед1+24)=8),АвгНед1+24,\"\"),IF(AND(YEAR(АвгНед1+31)=CalendarYear,MONTH(АвгНед1+31)=8),АвгНед1+31,\"\"))","v":"2019-08-28"},{"$f":"IF(DAY(АвгНед1)=1,IF(AND(YEAR(АвгНед1+25)=CalendarYear,MONTH(АвгНед1+25)=8),АвгНед1+25,\"\"),IF(AND(YEAR(АвгНед1+32)=CalendarYear,MONTH(АвгНед1+32)=8),АвгНед1+32,\"\"))","v":"2019-08-29"},{"$f":"IF(DAY(АвгНед1)=1,IF(AND(YEAR(АвгНед1+26)=CalendarYear,MONTH(АвгНед1+26)=8),АвгНед1+26,\"\"),IF(AND(YEAR(АвгНед1+33)=CalendarYear,MONTH(АвгНед1+33)=8),АвгНед1+33,\"\"))","v":"2019-08-30"},{"$f":"IF(DAY(АвгНед1)=1,IF(AND(YEAR(АвгНед1+27)=CalendarYear,MONTH(АвгНед1+27)=8),АвгНед1+27,\"\"),IF(AND(YEAR(АвгНед1+34)=CalendarYear,MONTH(АвгНед1+34)=8),АвгНед1+34,\"\"))","v":"2019-08-31"},{"$f":"IF(DAY(АвгНед1)=1,IF(AND(YEAR(АвгНед1+28)=CalendarYear,MONTH(АвгНед1+28)=8),АвгНед1+28,\"\"),IF(AND(YEAR(АвгНед1+35)=CalendarYear,MONTH(АвгНед1+35)=8),АвгНед1+35,\"\"))","v":""}]
[null,null,{"$f":"IF(DAY(ЮлиНед1)=1,IF(AND(YEAR(ЮлиНед1+29)=CalendarYear,MONTH(ЮлиНед1+29)=7),ЮлиНед1+29,\"\"),IF(AND(YEAR(ЮлиНед1+36)=CalendarYear,MONTH(ЮлиНед1+36)=7),ЮлиНед1+36,\"\"))","v":""},{"$f":"IF(DAY(ЮлиНед1)=1,IF(AND(YEAR(ЮлиНед1+30)=CalendarYear,MONTH(ЮлиНед1+30)=7),ЮлиНед1+30,\"\"),IF(AND(YEAR(ЮлиНед1+37)=CalendarYear,MONTH(ЮлиНед1+37)=7),ЮлиНед1+37,\"\"))","v":""},{"$f":"IF(DAY(ЮлиНед1)=1,IF(AND(YEAR(ЮлиНед1+31)=CalendarYear,MONTH(ЮлиНед1+31)=7),ЮлиНед1+31,\"\"),IF(AND(YEAR(ЮлиНед1+38)=CalendarYear,MONTH(ЮлиНед1+38)=7),ЮлиНед1+38,\"\"))","v":""},{"$f":"IF(DAY(ЮлиНед1)=1,IF(AND(YEAR(ЮлиНед1+32)=CalendarYear,MONTH(ЮлиНед1+32)=7),ЮлиНед1+32,\"\"),IF(AND(YEAR(ЮлиНед1+39)=CalendarYear,MONTH(ЮлиНед1+39)=7),ЮлиНед1+39,\"\"))","v":""},{"$f":"IF(DAY(ЮлиНед1)=1,IF(AND(YEAR(ЮлиНед1+33)=CalendarYear,MONTH(ЮлиНед1+33)=7),ЮлиНед1+33,\"\"),IF(AND(YEAR(ЮлиНед1+40)=CalendarYear,MONTH(ЮлиНед1+40)=7),ЮлиНед1+40,\"\"))","v":""},{"$f":"IF(DAY(ЮлиНед1)=1,IF(AND(YEAR(ЮлиНед1+34)=CalendarYear,MONTH(ЮлиНед1+34)=7),ЮлиНед1+34,\"\"),IF(AND(YEAR(ЮлиНед1+41)=CalendarYear,MONTH(ЮлиНед1+41)=7),ЮлиНед1+41,\"\"))","v":""},{"$f":"IF(DAY(ЮлиНед1)=1,IF(AND(YEAR(ЮлиНед1+35)=CalendarYear,MONTH(ЮлиНед1+35)=7),ЮлиНед1+35,\"\"),IF(AND(YEAR(ЮлиНед1+42)=CalendarYear,MONTH(ЮлиНед1+42)=7),ЮлиНед1+42,\"\"))","v":""},null,{"$f":"IF(DAY(АвгНед1)=1,IF(AND(YEAR(АвгНед1+29)=CalendarYear,MONTH(АвгНед1+29)=8),АвгНед1+29,\"\"),IF(AND(YEAR(АвгНед1+36)=CalendarYear,MONTH(АвгНед1+36)=8),АвгНед1+36,\"\"))","v":""},{"$f":"IF(DAY(АвгНед1)=1,IF(AND(YEAR(АвгНед1+30)=CalendarYear,MONTH(АвгНед1+30)=8),АвгНед1+30,\"\"),IF(AND(YEAR(АвгНед1+37)=CalendarYear,MONTH(АвгНед1+37)=8),АвгНед1+37,\"\"))","v":""},{"$f":"IF(DAY(АвгНед1)=1,IF(AND(YEAR(АвгНед1+31)=CalendarYear,MONTH(АвгНед1+31)=8),АвгНед1+31,\"\"),IF(AND(YEAR(АвгНед1+38)=CalendarYear,MONTH(АвгНед1+38)=8),АвгНед1+38,\"\"))","v":""},{"$f":"IF(DAY(АвгНед1)=1,IF(AND(YEAR(АвгНед1+32)=CalendarYear,MONTH(АвгНед1+32)=8),АвгНед1+32,\"\"),IF(AND(YEAR(АвгНед1+39)=CalendarYear,MONTH(АвгНед1+39)=8),АвгНед1+39,\"\"))","v":""},{"$f":"IF(DAY(АвгНед1)=1,IF(AND(YEAR(АвгНед1+33)=CalendarYear,MONTH(АвгНед1+33)=8),АвгНед1+33,\"\"),IF(AND(YEAR(АвгНед1+40)=CalendarYear,MONTH(АвгНед1+40)=8),АвгНед1+40,\"\"))","v":""},{"$f":"IF(DAY(АвгНед1)=1,IF(AND(YEAR(АвгНед1+34)=CalendarYear,MONTH(АвгНед1+34)=8),АвгНед1+34,\"\"),IF(AND(YEAR(АвгНед1+41)=CalendarYear,MONTH(АвгНед1+41)=8),АвгНед1+41,\"\"))","v":""},{"$f":"IF(DAY(АвгНед1)=1,IF(AND(YEAR(АвгНед1+35)=CalendarYear,MONTH(АвгНед1+35)=8),АвгНед1+35,\"\"),IF(AND(YEAR(АвгНед1+42)=CalendarYear,MONTH(АвгНед1+42)=8),АвгНед1+42,\"\"))","v":""}]
[]
[null,null,"СЕПТЕМВРИ",{"$nulls":7},"ОКТОМВРИ"]
[null,null,"П","В","С","Ч","П","С","Н",null,"П","В","С","Ч","П","С","Н"]
[null,null,{"$f":"IF(DAY(СепНед1)=1,\"\",IF(AND(YEAR(СепНед1+1)=CalendarYear,MONTH(СепНед1+1)=9),СепНед1+1,\"\"))","v":""},{"$f":"IF(DAY(СепНед1)=1,\"\",IF(AND(YEAR(СепНед1+2)=CalendarYear,MONTH(СепНед1+2)=9),СепНед1+2,\"\"))","v":""},{"$f":"IF(DAY(СепНед1)=1,\"\",IF(AND(YEAR(СепНед1+3)=CalendarYear,MONTH(СепНед1+3)=9),СепНед1+3,\"\"))","v":""},{"$f":"IF(DAY(СепНед1)=1,\"\",IF(AND(YEAR(СепНед1+4)=CalendarYear,MONTH(СепНед1+4)=9),СепНед1+4,\"\"))","v":""},{"$f":"IF(DAY(СепНед1)=1,\"\",IF(AND(YEAR(СепНед1+5)=CalendarYear,MONTH(СепНед1+5)=9),СепНед1+5,\"\"))","v":""},{"$f":"IF(DAY(СепНед1)=1,\"\",IF(AND(YEAR(СепНед1+6)=CalendarYear,MONTH(СепНед1+6)=9),СепНед1+6,\"\"))","v":""},{"$f":"IF(DAY(СепНед1)=1,IF(AND(YEAR(СепНед1)=CalendarYear,MONTH(СепНед1)=9),СепНед1,\"\"),IF(AND(YEAR(СепНед1+7)=CalendarYear,MONTH(СепНед1+7)=9),СепНед1+7,\"\"))","v":"2019-09-01"},null,{"$f":"IF(DAY(ОктНед1)=1,\"\",IF(AND(YEAR(ОктНед1+1)=CalendarYear,MONTH(ОктНед1+1)=10),ОктНед1+1,\"\"))","v":""},{"$f":"IF(DAY(ОктНед1)=1,\"\",IF(AND(YEAR(ОктНед1+2)=CalendarYear,MONTH(ОктНед1+2)=10),ОктНед1+2,\"\"))","v":"2019-10-01"},{"$f":"IF(DAY(ОктНед1)=1,\"\",IF(AND(YEAR(ОктНед1+3)=CalendarYear,MONTH(ОктНед1+3)=10),ОктНед1+3,\"\"))","v":"2019-10-02"},{"$f":"IF(DAY(ОктНед1)=1,\"\",IF(AND(YEAR(ОктНед1+4)=CalendarYear,MONTH(ОктНед1+4)=10),ОктНед1+4,\"\"))","v":"2019-10-03"},{"$f":"IF(DAY(ОктНед1)=1,\"\",IF(AND(YEAR(ОктНед1+5)=CalendarYear,MONTH(ОктНед1+5)=10),ОктНед1+5,\"\"))","v":"2019-10-04"},{"$f":"IF(DAY(ОктНед1)=1,\"\",IF(AND(YEAR(ОктНед1+6)=CalendarYear,MONTH(ОктНед1+6)=10),ОктНед1+6,\"\"))","v":"2019-10-05"},{"$f":"IF(DAY(ОктНед1)=1,IF(AND(YEAR(ОктНед1)=CalendarYear,MONTH(ОктНед1)=10),ОктНед1,\"\"),IF(AND(YEAR(ОктНед1+7)=CalendarYear,MONTH(ОктНед1+7)=10),ОктНед1+7,\"\"))","v":"2019-10-06"}]
[null,null,{"$f":"IF(DAY(СепНед1)=1,IF(AND(YEAR(СепНед1+1)=CalendarYear,MONTH(СепНед1+1)=9),СепНед1+1,\"\"),IF(AND(YEAR(СепНед1+8)=CalendarYear,MONTH(СепНед1+8)=9),СепНед1+8,\"\"))","v":"2019-09-02"},{"$f":"IF(DAY(СепНед1)=1,IF(AND(YEAR(СепНед1+2)=CalendarYear,MONTH(СепНед1+2)=9),СепНед1+2,\"\"),IF(AND(YEAR(СепНед1+9)=CalendarYear,MONTH(СепНед1+9)=9),СепНед1+9,\"\"))","v":"2019-09-03"},{"$f":"IF(DAY(СепНед1)=1,IF(AND(YEAR(СепНед1+3)=CalendarYear,MONTH(СепНед1+3)=9),СепНед1+3,\"\"),IF(AND(YEAR(СепНед1+10)=CalendarYear,MONTH(СепНед1+10)=9),СепНед1+10,\"\"))","v":"2019-09-04"},{"$f":"IF(DAY(СепНед1)=1,IF(AND(YEAR(СепНед1+4)=CalendarYear,MONTH(СепНед1+4)=9),СепНед1+4,\"\"),IF(AND(YEAR(СепНед1+11)=CalendarYear,MONTH(СепНед1+11)=9),СепНед1+11,\"\"))","v":"2019-09-05"},{"$f":"IF(DAY(СепНед1)=1,IF(AND(YEAR(СепНед1+5)=CalendarYear,MONTH(СепНед1+5)=9),СепНед1+5,\"\"),IF(AND(YEAR(СепНед1+12)=CalendarYear,MONTH(СепНед1+12)=9),СепНед1+12,\"\"))","v":"2019-09-06"},{"$f":"IF(DAY(СепНед1)=1,IF(AND(YEAR(СепНед1+6)=CalendarYear,MONTH(СепНед1+6)=9),СепНед1+6,\"\"),IF(AND(YEAR(СепНед1+13)=CalendarYear,MONTH(СепНед1+13)=9),СепНед1+13,\"\"))","v":"2019-09-07"},{"$f":"IF(DAY(СепНед1)=1,IF(AND(YEAR(СепНед1+7)=CalendarYear,MONTH(СепНед1+7)=9),СепНед1+7,\"\"),IF(AND(YEAR(СепНед1+14)=CalendarYear,MONTH(СепНед1+14)=9),СепНед1+14,\"\"))","v":"2019-09-08"},null,{"$f":"IF(DAY(ОктНед1)=1,IF(AND(YEAR(ОктНед1+1)=CalendarYear,MONTH(ОктНед1+1)=10),ОктНед1+1,\"\"),IF(AND(YEAR(ОктНед1+8)=CalendarYear,MONTH(ОктНед1+8)=10),ОктНед1+8,\"\"))","v":"2019-10-07"},{"$f":"IF(DAY(ОктНед1)=1,IF(AND(YEAR(ОктНед1+2)=CalendarYear,MONTH(ОктНед1+2)=10),ОктНед1+2,\"\"),IF(AND(YEAR(ОктНед1+9)=CalendarYear,MONTH(ОктНед1+9)=10),ОктНед1+9,\"\"))","v":"2019-10-08"},{"$f":"IF(DAY(ОктНед1)=1,IF(AND(YEAR(ОктНед1+3)=CalendarYear,MONTH(ОктНед1+3)=10),ОктНед1+3,\"\"),IF(AND(YEAR(ОктНед1+10)=CalendarYear,MONTH(ОктНед1+10)=10),ОктНед1+10,\"\"))","v":"2019-10-09"},{"$f":"IF(DAY(ОктНед1)=1,IF(AND(YEAR(ОктНед1+4)=CalendarYear,MONTH(ОктНед1+4)=10),ОктНед1+4,\"\"),IF(AND(YEAR(ОктНед1+11)=CalendarYear,MONTH(ОктНед1+11)=10),ОктНед1+11,\"\"))","v":"2019-10-10"},{"$f":"IF(DAY(ОктНед1)=1,IF(AND(YEAR(ОктНед1+5)=CalendarYear,MONTH(ОктНед1+5)=10),ОктНед1+5,\"\"),IF(AND(YEAR(ОктНед1+12)=CalendarYear,MONTH(ОктНед1+12)=10),ОктНед1+12,\"\"))","v":"2019-10-11"},{"$f":"IF(DAY(ОктНед1)=1,IF(AND(YEAR(ОктНед1+6)=CalendarYear,MONTH(ОктНед1+6)=10),ОктНед1+6,\"\"),IF(AND(YEAR(ОктНед1+13)=CalendarYear,MONTH(ОктНед1+13)=10),ОктНед1+13,\"\"))","v":"2019-10-12"},{"$f":"IF(DAY(ОктНед1)=1,IF(AND(YEAR(ОктНед1+7)=CalendarYear,MONTH(ОктНед1+7)=10),ОктНед1+7,\"\"),IF(AND(YEAR(ОктНед1+14)=CalendarYear,MONTH(ОктНед1+14)=10),ОктНед1+14,\"\"))","v":"2019-10-13"}]
[null,null,{"$f":"IF(DAY(СепНед1)=1,IF(AND(YEAR(СепНед1+8)=CalendarYear,MONTH(СепНед1+8)=9),СепНед1+8,\"\"),IF(AND(YEAR(СепНед1+15)=CalendarYear,MONTH(СепНед1+15)=9),СепНед1+15,\"\"))","v":"2019-09-09"},{"$f":"IF(DAY(СепНед1)=1,IF(AND(YEAR(СепНед1+9)=CalendarYear,MONTH(СепНед1+9)=9),СепНед1+9,\"\"),IF(AND(YEAR(СепНед1+16)=CalendarYear,MONTH(СепНед1+16)=9),СепНед1+16,\"\"))","v":"2019-09-10"},{"$f":"IF(DAY(СепНед1)=1,IF(AND(YEAR(СепНед1+10)=CalendarYear,MONTH(СепНед1+10)=9),СепНед1+10,\"\"),IF(AND(YEAR(СепНед1+17)=CalendarYear,MONTH(СепНед1+17)=9),СепНед1+17,\"\"))","v":"2019-09-11"},{"$f":"IF(DAY(СепНед1)=1,IF(AND(YEAR(СепНед1+11)=CalendarYear,MONTH(СепНед1+11)=9),СепНед1+11,\"\"),IF(AND(YEAR(СепНед1+18)=CalendarYear,MONTH(СепНед1+18)=9),СепНед1+18,\"\"))","v":"2019-09-12"},{"$f":"IF(DAY(СепНед1)=1,IF(AND(YEAR(СепНед1+12)=CalendarYear,MONTH(СепНед1+12)=9),СепНед1+12,\"\"),IF(AND(YEAR(СепНед1+19)=CalendarYear,MONTH(СепНед1+19)=9),СепНед1+19,\"\"))","v":"2019-09-13"},{"$f":"IF(DAY(СепНед1)=1,IF(AND(YEAR(СепНед1+13)=CalendarYear,MONTH(СепНед1+13)=9),СепНед1+13,\"\"),IF(AND(YEAR(СепНед1+20)=CalendarYear,MONTH(СепНед1+20)=9),СепНед1+20,\"\"))","v":"2019-09-14"},{"$f":"IF(DAY(СепНед1)=1,IF(AND(YEAR(СепНед1+14)=CalendarYear,MONTH(СепНед1+14)=9),СепНед1+14,\"\"),IF(AND(YEAR(СепНед1+21)=CalendarYear,MONTH(СепНед1+21)=9),СепНед1+21,\"\"))","v":"2019-09-15"},null,{"$f":"IF(DAY(ОктНед1)=1,IF(AND(YEAR(ОктНед1+8)=CalendarYear,MONTH(ОктНед1+8)=10),ОктНед1+8,\"\"),IF(AND(YEAR(ОктНед1+15)=CalendarYear,MONTH(ОктНед1+15)=10),ОктНед1+15,\"\"))","v":"2019-10-14"},{"$f":"IF(DAY(ОктНед1)=1,IF(AND(YEAR(ОктНед1+9)=CalendarYear,MONTH(ОктНед1+9)=10),ОктНед1+9,\"\"),IF(AND(YEAR(ОктНед1+16)=CalendarYear,MONTH(ОктНед1+16)=10),ОктНед1+16,\"\"))","v":"2019-10-15"},{"$f":"IF(DAY(ОктНед1)=1,IF(AND(YEAR(ОктНед1+10)=CalendarYear,MONTH(ОктНед1+10)=10),ОктНед1+10,\"\"),IF(AND(YEAR(ОктНед1+17)=CalendarYear,MONTH(ОктНед1+17)=10),ОктНед1+17,\"\"))","v":"2019-10-16"},{"$f":"IF(DAY(ОктНед1)=1,IF(AND(YEAR(ОктНед1+11)=CalendarYear,MONTH(ОктНед1+11)=10),ОктНед1+11,\"\"),IF(AND(YEAR(ОктНед1+18)=CalendarYear,MONTH(ОктНед1+18)=10),ОктНед1+18,\"\"))","v":"2019-10-17"},{"$f":"IF(DAY(ОктНед1)=1,IF(AND(YEAR(ОктНед1+12)=CalendarYear,MONTH(ОктНед1+12)=10),ОктНед1+12,\"\"),IF(AND(YEAR(ОктНед1+19)=CalendarYear,MONTH(ОктНед1+19)=10),ОктНед1+19,\"\"))","v":"2019-10-18"},{"$f":"IF(DAY(ОктНед1)=1,IF(AND(YEAR(ОктНед1+13)=CalendarYear,MONTH(ОктНед1+13)=10),ОктНед1+13,\"\"),IF(AND(YEAR(ОктНед1+20)=CalendarYear,MONTH(ОктНед1+20)=10),ОктНед1+20,\"\"))","v":"2019-10-19"},{"$f":"IF(DAY(ОктНед1)=1,IF(AND(YEAR(ОктНед1+14)=CalendarYear,MONTH(ОктНед1+14)=10),ОктНед1+14,\"\"),IF(AND(YEAR(ОктНед1+21)=CalendarYear,MONTH(ОктНед1+21)=10),ОктНед1+21,\"\"))","v":"2019-10-20"}]
[null,null,{"$f":"IF(DAY(СепНед1)=1,IF(AND(YEAR(СепНед1+15)=CalendarYear,MONTH(СепНед1+15)=9),СепНед1+15,\"\"),IF(AND(YEAR(СепНед1+22)=CalendarYear,MONTH(СепНед1+22)=9),СепНед1+22,\"\"))","v":"2019-09-16"},{"$f":"IF(DAY(СепНед1)=1,IF(AND(YEAR(СепНед1+16)=CalendarYear,MONTH(СепНед1+16)=9),СепНед1+16,\"\"),IF(AND(YEAR(СепНед1+23)=CalendarYear,MONTH(СепНед1+23)=9),СепНед1+23,\"\"))","v":"2019-09-17"},{"$f":"IF(DAY(СепНед1)=1,IF(AND(YEAR(СепНед1+17)=CalendarYear,MONTH(СепНед1+17)=9),СепНед1+17,\"\"),IF(AND(YEAR(СепНед1+24)=CalendarYear,MONTH(СепНед1+24)=9),СепНед1+24,\"\"))","v":"2019-09-18"},{"$f":"IF(DAY(СепНед1)=1,IF(AND(YEAR(СепНед1+18)=CalendarYear,MONTH(СепНед1+18)=9),СепНед1+18,\"\"),IF(AND(YEAR(СепНед1+25)=CalendarYear,MONTH(СепНед1+25)=9),СепНед1+25,\"\"))","v":"2019-09-19"},{"$f":"IF(DAY(СепНед1)=1,IF(AND(YEAR(СепНед1+19)=CalendarYear,MONTH(СепНед1+19)=9),СепНед1+19,\"\"),IF(AND(YEAR(СепНед1+26)=CalendarYear,MONTH(СепНед1+26)=9),СепНед1+26,\"\"))","v":"2019-09-20"},{"$f":"IF(DAY(СепНед1)=1,IF(AND(YEAR(СепНед1+20)=CalendarYear,MONTH(СепНед1+20)=9),СепНед1+20,\"\"),IF(AND(YEAR(СепНед1+27)=CalendarYear,MONTH(СепНед1+27)=9),СепНед1+27,\"\"))","v":"2019-09-21"},{"$f":"IF(DAY(СепНед1)=1,IF(AND(YEAR(СепНед1+21)=CalendarYear,MONTH(СепНед1+21)=9),СепНед1+21,\"\"),IF(AND(YEAR(СепНед1+28)=CalendarYear,MONTH(СепНед1+28)=9),СепНед1+28,\"\"))","v":"2019-09-22"},null,{"$f":"IF(DAY(ОктНед1)=1,IF(AND(YEAR(ОктНед1+15)=CalendarYear,MONTH(ОктНед1+15)=10),ОктНед1+15,\"\"),IF(AND(YEAR(ОктНед1+22)=CalendarYear,MONTH(ОктНед1+22)=10),ОктНед1+22,\"\"))","v":"2019-10-21"},{"$f":"IF(DAY(ОктНед1)=1,IF(AND(YEAR(ОктНед1+16)=CalendarYear,MONTH(ОктНед1+16)=10),ОктНед1+16,\"\"),IF(AND(YEAR(ОктНед1+23)=CalendarYear,MONTH(ОктНед1+23)=10),ОктНед1+23,\"\"))","v":"2019-10-22"},{"$f":"IF(DAY(ОктНед1)=1,IF(AND(YEAR(ОктНед1+17)=CalendarYear,MONTH(ОктНед1+17)=10),ОктНед1+17,\"\"),IF(AND(YEAR(ОктНед1+24)=CalendarYear,MONTH(ОктНед1+24)=10),ОктНед1+24,\"\"))","v":"2019-10-23"},{"$f":"IF(DAY(ОктНед1)=1,IF(AND(YEAR(ОктНед1+18)=CalendarYear,MONTH(ОктНед1+18)=10),ОктНед1+18,\"\"),IF(AND(YEAR(ОктНед1+25)=CalendarYear,MONTH(ОктНед1+25)=10),ОктНед1+25,\"\"))","v":"2019-10-24"},{"$f":"IF(DAY(ОктНед1)=1,IF(AND(YEAR(ОктНед1+19)=CalendarYear,MONTH(ОктНед1+19)=10),ОктНед1+19,\"\"),IF(AND(YEAR(ОктНед1+26)=CalendarYear,MONTH(ОктНед1+26)=10),ОктНед1+26,\"\"))","v":"2019-10-25"},{"$f":"IF(DAY(ОктНед1)=1,IF(AND(YEAR(ОктНед1+20)=CalendarYear,MONTH(ОктНед1+20)=10),ОктНед1+20,\"\"),IF(AND(YEAR(ОктНед1+27)=CalendarYear,MONTH(ОктНед1+27)=10),ОктНед1+27,\"\"))","v":"2019-10-26"},{"$f":"IF(DAY(ОктНед1)=1,IF(AND(YEAR(ОктНед1+21)=CalendarYear,MONTH(ОктНед1+21)=10),ОктНед1+21,\"\"),IF(AND(YEAR(ОктНед1+28)=CalendarYear,MONTH(ОктНед1+28)=10),ОктНед1+28,\"\"))","v":"2019-10-27"},{"$nulls":3},"ул. \"Незабравка\" 123"]
[null,null,{"$f":"IF(DAY(СепНед1)=1,IF(AND(YEAR(СепНед1+22)=CalendarYear,MONTH(СепНед1+22)=9),СепНед1+22,\"\"),IF(AND(YEAR(СепНед1+29)=CalendarYear,MONTH(СепНед1+29)=9),СепНед1+29,\"\"))","v":"2019-09-23"},{"$f":"IF(DAY(СепНед1)=1,IF(AND(YEAR(СепНед1+23)=CalendarYear,MONTH(СепНед1+23)=9),СепНед1+23,\"\"),IF(AND(YEAR(СепНед1+30)=CalendarYear,MONTH(СепНед1+30)=9),СепНед1+30,\"\"))","v":"2019-09-24"},{"$f":"IF(DAY(СепНед1)=1,IF(AND(YEAR(СепНед1+24)=CalendarYear,MONTH(СепНед1+24)=9),СепНед1+24,\"\"),IF(AND(YEAR(СепНед1+31)=CalendarYear,MONTH(СепНед1+31)=9),СепНед1+31,\"\"))","v":"2019-09-25"},{"$f":"IF(DAY(СепНед1)=1,IF(AND(YEAR(СепНед1+25)=CalendarYear,MONTH(СепНед1+25)=9),СепНед1+25,\"\"),IF(AND(YEAR(СепНед1+32)=CalendarYear,MONTH(СепНед1+32)=9),СепНед1+32,\"\"))","v":"2019-09-26"},{"$f":"IF(DAY(СепНед1)=1,IF(AND(YEAR(СепНед1+26)=CalendarYear,MONTH(СепНед1+26)=9),СепНед1+26,\"\"),IF(AND(YEAR(СепНед1+33)=CalendarYear,MONTH(СепНед1+33)=9),СепНед1+33,\"\"))","v":"2019-09-27"},{"$f":"IF(DAY(СепНед1)=1,IF(AND(YEAR(СепНед1+27)=CalendarYear,MONTH(СепНед1+27)=9),СепНед1+27,\"\"),IF(AND(YEAR(СепНед1+34)=CalendarYear,MONTH(СепНед1+34)=9),СепНед1+34,\"\"))","v":"2019-09-28"},{"$f":"IF(DAY(СепНед1)=1,IF(AND(YEAR(СепНед1+28)=CalendarYear,MONTH(СепНед1+28)=9),СепНед1+28,\"\"),IF(AND(YEAR(СепНед1+35)=CalendarYear,MONTH(СепНед1+35)=9),СепНед1+35,\"\"))","v":"2019-09-29"},null,{"$f":"IF(DAY(ОктНед1)=1,IF(AND(YEAR(ОктНед1+22)=CalendarYear,MONTH(ОктНед1+22)=10),ОктНед1+22,\"\"),IF(AND(YEAR(ОктНед1+29)=CalendarYear,MONTH(ОктНед1+29)=10),ОктНед1+29,\"\"))","v":"2019-10-28"},{"$f":"IF(DAY(ОктНед1)=1,IF(AND(YEAR(ОктНед1+23)=CalendarYear,MONTH(ОктНед1+23)=10),ОктНед1+23,\"\"),IF(AND(YEAR(ОктНед1+30)=CalendarYear,MONTH(ОктНед1+30)=10),ОктНед1+30,\"\"))","v":"2019-10-29"},{"$f":"IF(DAY(ОктНед1)=1,IF(AND(YEAR(ОктНед1+24)=CalendarYear,MONTH(ОктНед1+24)=10),ОктНед1+24,\"\"),IF(AND(YEAR(ОктНед1+31)=CalendarYear,MONTH(ОктНед1+31)=10),ОктНед1+31,\"\"))","v":"2019-10-30"},{"$f":"IF(DAY(ОктНед1)=1,IF(AND(YEAR(ОктНед1+25)=CalendarYear,MONTH(ОктНед1+25)=10),ОктНед1+25,\"\"),IF(AND(YEAR(ОктНед1+32)=CalendarYear,MONTH(ОктНед1+32)=10),ОктНед1+32,\"\"))","v":"2019-10-31"},{"$f":"IF(DAY(ОктНед1)=1,IF(AND(YEAR(ОктНед1+26)=CalendarYear,MONTH(ОктНед1+26)=10),ОктНед1+26,\"\"),IF(AND(YEAR(ОктНед1+33)=CalendarYear,MONTH(ОктНед1+33)=10),ОктНед1+33,\"\"))","v":""},{"$f":"IF(DAY(ОктНед1)=1,IF(AND(YEAR(ОктНед1+27)=CalendarYear,MONTH(ОктНед1+27)=10),ОктНед1+27,\"\"),IF(AND(YEAR(ОктНед1+34)=CalendarYear,MONTH(ОктНед1+34)=10),ОктНед1+34,\"\"))","v":""},{"$f":"IF(DAY(ОктНед1)=1,IF(AND(YEAR(ОктНед1+28)=CalendarYear,MONTH(ОктНед1+28)=10),ОктНед1+28,\"\"),IF(AND(YEAR(ОктНед1+35)=CalendarYear,MONTH(ОктНед1+35)=10),ОктНед1+35,\"\"))","v":""},{"$nulls":3},"София, 1000"]
[null,null,{"$f":"IF(DAY(СепНед1)=1,IF(AND(YEAR(СепНед1+29)=CalendarYear,MONTH(СепНед1+29)=9),СепНед1+29,\"\"),IF(AND(YEAR(СепНед1+36)=CalendarYear,MONTH(СепНед1+36)=9),СепНед1+36,\"\"))","v":"2019-09-30"},{"$f":"IF(DAY(СепНед1)=1,IF(AND(YEAR(СепНед1+30)=CalendarYear,MONTH(СепНед1+30)=9),СепНед1+30,\"\"),IF(AND(YEAR(СепНед1+37)=CalendarYear,MONTH(СепНед1+37)=9),СепНед1+37,\"\"))","v":""},{"$f":"IF(DAY(СепНед1)=1,IF(AND(YEAR(СепНед1+31)=CalendarYear,MONTH(СепНед1+31)=9),СепНед1+31,\"\"),IF(AND(YEAR(СепНед1+38)=CalendarYear,MONTH(СепНед1+38)=9),СепНед1+38,\"\"))","v":""},{"$f":"IF(DAY(СепНед1)=1,IF(AND(YEAR(СепНед1+32)=CalendarYear,MONTH(СепНед1+32)=9),СепНед1+32,\"\"),IF(AND(YEAR(СепНед1+39)=CalendarYear,MONTH(СепНед1+39)=9),СепНед1+39,\"\"))","v":""},{"$f":"IF(DAY(СепНед1)=1,IF(AND(YEAR(СепНед1+33)=CalendarYear,MONTH(СепНед1+33)=9),СепНед1+33,\"\"),IF(AND(YEAR(СепНед1+40)=CalendarYear,MONTH(СепНед1+40)=9),СепНед1+40,\"\"))","v":""},{"$f":"IF(DAY(СепНед1)=1,IF(AND(YEAR(СепНед1+34)=CalendarYear,MONTH(СепНед1+34)=9),СепНед1+34,\"\"),IF(AND(YEAR(СепНед1+41)=CalendarYear,MONTH(СепНед1+41)=9),СепНед1+41,\"\"))","v":""},{"$f":"IF(DAY(СепНед1)=1,IF(AND(YEAR(СепНед1+35)=CalendarYear,MONTH(СепНед1+35)=9),СепНед1+35,\"\"),IF(AND(YEAR(СепНед1+42)=CalendarYear,MONTH(СепНед1+42)=9),СепНед1+42,\"\"))","v":""},null,{"$f":"IF(DAY(ОктНед1)=1,IF(AND(YEAR(ОктНед1+29)=CalendarYear,MONTH(ОктНед1+29)=10),ОктНед1+29,\"\"),IF(AND(YEAR(ОктНед1+36)=CalendarYear,MONTH(ОктНед1+36)=10),ОктНед1+36,\"\"))","v":""},{"$f":"IF(DAY(ОктНед1)=1,IF(AND(YEAR(ОктНед1+30)=CalendarYear,MONTH(ОктНед1+30)=10),ОктНед1+30,\"\"),IF(AND(YEAR(ОктНед1+37)=CalendarYear,MONTH(ОктНед1+37)=10),ОктНед1+37,\"\"))","v":""},{"$f":"IF(DAY(ОктНед1)=1,IF(AND(YEAR(ОктНед1+31)=CalendarYear,MONTH(ОктНед1+31)=10),ОктНед1+31,\"\"),IF(AND(YEAR(ОктНед1+38)=CalendarYear,MONTH(ОктНед1+38)=10),ОктНед1+38,\"\"))","v":""},{"$f":"IF(DAY(ОктНед1)=1,IF(AND(YEAR(ОктНед1+32)=CalendarYear,MONTH(ОктНед1+32)=10),ОктНед1+32,\"\"),IF(AND(YEAR(ОктНед1+39)=CalendarYear,MONTH(ОктНед1+39)=10),ОктНед1+39,\"\"))","v":""},{"$f":"IF(DAY(ОктНед1)=1,IF(AND(YEAR(ОктНед1+33)=CalendarYear,MONTH(ОктНед1+33)=10),ОктНед1+33,\"\"),IF(AND(YEAR(ОктНед1+40)=CalendarYear,MONTH(ОктНед1+40)=10),ОктНед1+40,\"\"))","v":""},{"$f":"IF(DAY(ОктНед1)=1,IF(AND(YEAR(ОктНед1+34)=CalendarYear,MONTH(ОктНед1+34)=10),ОктНед1+34,\"\"),IF(AND(YEAR(ОктНед1+41)=CalendarYear,MONTH(ОктНед1+41)=10),ОктНед1+41,\"\"))","v":""},{"$f":"IF(DAY(ОктНед1)=1,IF(AND(YEAR(ОктНед1+35)=CalendarYear,MONTH(ОктНед1+35)=10),ОктНед1+35,\"\"),IF(AND(YEAR(ОктНед1+42)=CalendarYear,MONTH(ОктНед1+42)=10),ОктНед1+42,\"\"))","v":""}]
[{"$nulls":20},"456.555.0123"]
[null,null,"НОЕМВРИ",{"$nulls":7},"ДЕКЕМВРИ",{"$nulls":9},"info@contoso.com"]
[null,null,"П","В","С","Ч","П","С","Н",null,"П","В","С","Ч","П","С","Н",{"$nulls":3},"www.contoso.com"]
[null,null,{"$f":"IF(DAY(НоеНед1)=1,\"\",IF(AND(YEAR(НоеНед1+1)=CalendarYear,MONTH(НоеНед1+1)=11),НоеНед1+1,\"\"))","v":""},{"$f":"IF(DAY(НоеНед1)=1,\"\",IF(AND(YEAR(НоеНед1+2)=CalendarYear,MONTH(НоеНед1+2)=11),НоеНед1+2,\"\"))","v":""},{"$f":"IF(DAY(НоеНед1)=1,\"\",IF(AND(YEAR(НоеНед1+3)=CalendarYear,MONTH(НоеНед1+3)=11),НоеНед1+3,\"\"))","v":""},{"$f":"IF(DAY(НоеНед1)=1,\"\",IF(AND(YEAR(НоеНед1+4)=CalendarYear,MONTH(НоеНед1+4)=11),НоеНед1+4,\"\"))","v":""},{"$f":"IF(DAY(НоеНед1)=1,\"\",IF(AND(YEAR(НоеНед1+5)=CalendarYear,MONTH(НоеНед1+5)=11),НоеНед1+5,\"\"))","v":"2019-11-01"},{"$f":"IF(DAY(НоеНед1)=1,\"\",IF(AND(YEAR(НоеНед1+6)=CalendarYear,MONTH(НоеНед1+6)=11),НоеНед1+6,\"\"))","v":"2019-11-02"},{"$f":"IF(DAY(НоеНед1)=1,IF(AND(YEAR(НоеНед1)=CalendarYear,MONTH(НоеНед1)=11),НоеНед1,\"\"),IF(AND(YEAR(НоеНед1+7)=CalendarYear,MONTH(НоеНед1+7)=11),НоеНед1+7,\"\"))","v":"2019-11-03"},null,{"$f":"IF(DAY(ДекНед1)=1,\"\",IF(AND(YEAR(ДекНед1+1)=CalendarYear,MONTH(ДекНед1+1)=12),ДекНед1+1,\"\"))","v":""},{"$f":"IF(DAY(ДекНед1)=1,\"\",IF(AND(YEAR(ДекНед1+2)=CalendarYear,MONTH(ДекНед1+2)=12),ДекНед1+2,\"\"))","v":""},{"$f":"IF(DAY(ДекНед1)=1,\"\",IF(AND(YEAR(ДекНед1+3)=CalendarYear,MONTH(ДекНед1+3)=12),ДекНед1+3,\"\"))","v":""},{"$f":"IF(DAY(ДекНед1)=1,\"\",IF(AND(YEAR(ДекНед1+4)=CalendarYear,MONTH(ДекНед1+4)=12),ДекНед1+4,\"\"))","v":""},{"$f":"IF(DAY(ДекНед1)=1,\"\",IF(AND(YEAR(ДекНед1+5)=CalendarYear,MONTH(ДекНед1+5)=12),ДекНед1+5,\"\"))","v":""},{"$f":"IF(DAY(ДекНед1)=1,\"\",IF(AND(YEAR(ДекНед1+6)=CalendarYear,MONTH(ДекНед1+6)=12),ДекНед1+6,\"\"))","v":""},{"$f":"IF(DAY(ДекНед1)=1,IF(AND(YEAR(ДекНед1)=CalendarYear,MONTH(ДекНед1)=12),ДекНед1,\"\"),IF(AND(YEAR(ДекНед1+7)=CalendarYear,MONTH(ДекНед1+7)=12),ДекНед1+7,\"\"))","v":"2019-12-01"}]
[null,null,{"$f":"IF(DAY(НоеНед1)=1,IF(AND(YEAR(НоеНед1+1)=CalendarYear,MONTH(НоеНед1+1)=11),НоеНед1+1,\"\"),IF(AND(YEAR(НоеНед1+8)=CalendarYear,MONTH(НоеНед1+8)=11),НоеНед1+8,\"\"))","v":"2019-11-04"},{"$f":"IF(DAY(НоеНед1)=1,IF(AND(YEAR(НоеНед1+2)=CalendarYear,MONTH(НоеНед1+2)=11),НоеНед1+2,\"\"),IF(AND(YEAR(НоеНед1+9)=CalendarYear,MONTH(НоеНед1+9)=11),НоеНед1+9,\"\"))","v":"2019-11-05"},{"$f":"IF(DAY(НоеНед1)=1,IF(AND(YEAR(НоеНед1+3)=CalendarYear,MONTH(НоеНед1+3)=11),НоеНед1+3,\"\"),IF(AND(YEAR(НоеНед1+10)=CalendarYear,MONTH(НоеНед1+10)=11),НоеНед1+10,\"\"))","v":"2019-11-06"},{"$f":"IF(DAY(НоеНед1)=1,IF(AND(YEAR(НоеНед1+4)=CalendarYear,MONTH(НоеНед1+4)=11),НоеНед1+4,\"\"),IF(AND(YEAR(НоеНед1+11)=CalendarYear,MONTH(НоеНед1+11)=11),НоеНед1+11,\"\"))","v":"2019-11-07"},{"$f":"IF(DAY(НоеНед1)=1,IF(AND(YEAR(НоеНед1+5)=CalendarYear,MONTH(НоеНед1+5)=11),НоеНед1+5,\"\"),IF(AND(YEAR(НоеНед1+12)=CalendarYear,MONTH(НоеНед1+12)=11),НоеНед1+12,\"\"))","v":"2019-11-08"},{"$f":"IF(DAY(НоеНед1)=1,IF(AND(YEAR(НоеНед1+6)=CalendarYear,MONTH(НоеНед1+6)=11),НоеНед1+6,\"\"),IF(AND(YEAR(НоеНед1+13)=CalendarYear,MONTH(НоеНед1+13)=11),НоеНед1+13,\"\"))","v":"2019-11-09"},{"$f":"IF(DAY(НоеНед1)=1,IF(AND(YEAR(НоеНед1+7)=CalendarYear,MONTH(НоеНед1+7)=11),НоеНед1+7,\"\"),IF(AND(YEAR(НоеНед1+14)=CalendarYear,MONTH(НоеНед1+14)=11),НоеНед1+14,\"\"))","v":"2019-11-10"},null,{"$f":"IF(DAY(ДекНед1)=1,IF(AND(YEAR(ДекНед1+1)=CalendarYear,MONTH(ДекНед1+1)=12),ДекНед1+1,\"\"),IF(AND(YEAR(ДекНед1+8)=CalendarYear,MONTH(ДекНед1+8)=12),ДекНед1+8,\"\"))","v":"2019-12-02"},{"$f":"IF(DAY(ДекНед1)=1,IF(AND(YEAR(ДекНед1+2)=CalendarYear,MONTH(ДекНед1+2)=12),ДекНед1+2,\"\"),IF(AND(YEAR(ДекНед1+9)=CalendarYear,MONTH(ДекНед1+9)=12),ДекНед1+9,\"\"))","v":"2019-12-03"},{"$f":"IF(DAY(ДекНед1)=1,IF(AND(YEAR(ДекНед1+3)=CalendarYear,MONTH(ДекНед1+3)=12),ДекНед1+3,\"\"),IF(AND(YEAR(ДекНед1+10)=CalendarYear,MONTH(ДекНед1+10)=12),ДекНед1+10,\"\"))","v":"2019-12-04"},{"$f":"IF(DAY(ДекНед1)=1,IF(AND(YEAR(ДекНед1+4)=CalendarYear,MONTH(ДекНед1+4)=12),ДекНед1+4,\"\"),IF(AND(YEAR(ДекНед1+11)=CalendarYear,MONTH(ДекНед1+11)=12),ДекНед1+11,\"\"))","v":"2019-12-05"},{"$f":"IF(DAY(ДекНед1)=1,IF(AND(YEAR(ДекНед1+5)=CalendarYear,MONTH(ДекНед1+5)=12),ДекНед1+5,\"\"),IF(AND(YEAR(ДекНед1+12)=CalendarYear,MONTH(ДекНед1+12)=12),ДекНед1+12,\"\"))","v":"2019-12-06"},{"$f":"IF(DAY(ДекНед1)=1,IF(AND(YEAR(ДекНед1+6)=CalendarYear,MONTH(ДекНед1+6)=12),ДекНед1+6,\"\"),IF(AND(YEAR(ДекНед1+13)=CalendarYear,MONTH(ДекНед1+13)=12),ДекНед1+13,\"\"))","v":"2019-12-07"},{"$f":"IF(DAY(ДекНед1)=1,IF(AND(YEAR(ДекНед1+7)=CalendarYear,MONTH(ДекНед1+7)=12),ДекНед1+7,\"\"),IF(AND(YEAR(ДекНед1+14)=CalendarYear,MONTH(ДекНед1+14)=12),ДекНед1+14,\"\"))","v":"2019-12-08"}]
[null,null,{"$f":"IF(DAY(НоеНед1)=1,IF(AND(YEAR(НоеНед1+8)=CalendarYear,MONTH(НоеНед1+8)=11),НоеНед1+8,\"\"),IF(AND(YEAR(НоеНед1+15)=CalendarYear,MONTH(НоеНед1+15)=11),НоеНед1+15,\"\"))","v":"2019-11-11"},{"$f":"IF(DAY(НоеНед1)=1,IF(AND(YEAR(НоеНед1+9)=CalendarYear,MONTH(НоеНед1+9)=11),НоеНед1+9,\"\"),IF(AND(YEAR(НоеНед1+16)=CalendarYear,MONTH(НоеНед1+16)=11),НоеНед1+16,\"\"))","v":"2019-11-12"},{"$f":"IF(DAY(НоеНед1)=1,IF(AND(YEAR(НоеНед1+10)=CalendarYear,MONTH(НоеНед1+10)=11),НоеНед1+10,\"\"),IF(AND(YEAR(НоеНед1+17)=CalendarYear,MONTH(НоеНед1+17)=11),НоеНед1+17,\"\"))","v":"2019-11-13"},{"$f":"IF(DAY(НоеНед1)=1,IF(AND(YEAR(НоеНед1+11)=CalendarYear,MONTH(НоеНед1+11)=11),НоеНед1+11,\"\"),IF(AND(YEAR(НоеНед1+18)=CalendarYear,MONTH(НоеНед1+18)=11),НоеНед1+18,\"\"))","v":"2019-11-14"},{"$f":"IF(DAY(НоеНед1)=1,IF(AND(YEAR(НоеНед1+12)=CalendarYear,MONTH(НоеНед1+12)=11),НоеНед1+12,\"\"),IF(AND(YEAR(НоеНед1+19)=CalendarYear,MONTH(НоеНед1+19)=11),НоеНед1+19,\"\"))","v":"2019-11-15"},{"$f":"IF(DAY(НоеНед1)=1,IF(AND(YEAR(НоеНед1+13)=CalendarYear,MONTH(НоеНед1+13)=11),НоеНед1+13,\"\"),IF(AND(YEAR(НоеНед1+20)=CalendarYear,MONTH(НоеНед1+20)=11),НоеНед1+20,\"\"))","v":"2019-11-16"},{"$f":"IF(DAY(НоеНед1)=1,IF(AND(YEAR(НоеНед1+14)=CalendarYear,MONTH(НоеНед1+14)=11),НоеНед1+14,\"\"),IF(AND(YEAR(НоеНед1+21)=CalendarYear,MONTH(НоеНед1+21)=11),НоеНед1+21,\"\"))","v":"2019-11-17"},null,{"$f":"IF(DAY(ДекНед1)=1,IF(AND(YEAR(ДекНед1+8)=CalendarYear,MONTH(ДекНед1+8)=12),ДекНед1+8,\"\"),IF(AND(YEAR(ДекНед1+15)=CalendarYear,MONTH(ДекНед1+15)=12),ДекНед1+15,\"\"))","v":"2019-12-09"},{"$f":"IF(DAY(ДекНед1)=1,IF(AND(YEAR(ДекНед1+9)=CalendarYear,MONTH(ДекНед1+9)=12),ДекНед1+9,\"\"),IF(AND(YEAR(ДекНед1+16)=CalendarYear,MONTH(ДекНед1+16)=12),ДекНед1+16,\"\"))","v":"2019-12-10"},{"$f":"IF(DAY(ДекНед1)=1,IF(AND(YEAR(ДекНед1+10)=CalendarYear,MONTH(ДекНед1+10)=12),ДекНед1+10,\"\"),IF(AND(YEAR(ДекНед1+17)=CalendarYear,MONTH(ДекНед1+17)=12),ДекНед1+17,\"\"))","v":"2019-12-11"},{"$f":"IF(DAY(ДекНед1)=1,IF(AND(YEAR(ДекНед1+11)=CalendarYear,MONTH(ДекНед1+11)=12),ДекНед1+11,\"\"),IF(AND(YEAR(ДекНед1+18)=CalendarYear,MONTH(ДекНед1+18)=12),ДекНед1+18,\"\"))","v":"2019-12-12"},{"$f":"IF(DAY(ДекНед1)=1,IF(AND(YEAR(ДекНед1+12)=CalendarYear,MONTH(ДекНед1+12)=12),ДекНед1+12,\"\"),IF(AND(YEAR(ДекНед1+19)=CalendarYear,MONTH(ДекНед1+19)=12),ДекНед1+19,\"\"))","v":"2019-12-13"},{"$f":"IF(DAY(ДекНед1)=1,IF(AND(YEAR(ДекНед1+13)=CalendarYear,MONTH(ДекНед1+13)=12),ДекНед1+13,\"\"),IF(AND(YEAR(ДекНед1+20)=CalendarYear,MONTH(ДекНед1+20)=12),ДекНед1+20,\"\"))","v":"2019-12-14"},{"$f":"IF(DAY(ДекНед1)=1,IF(AND(YEAR(ДекНед1+14)=CalendarYear,MONTH(ДекНед1+14)=12),ДекНед1+14,\"\"),IF(AND(YEAR(ДекНед1+21)=CalendarYear,MONTH(ДекНед1+21)=12),ДекНед1+21,\"\"))","v":"2019-12-15"}]
[null,null,{"$f":"IF(DAY(НоеНед1)=1,IF(AND(YEAR(НоеНед1+15)=CalendarYear,MONTH(НоеНед1+15)=11),НоеНед1+15,\"\"),IF(AND(YEAR(НоеНед1+22)=CalendarYear,MONTH(НоеНед1+22)=11),НоеНед1+22,\"\"))","v":"2019-11-18"},{"$f":"IF(DAY(НоеНед1)=1,IF(AND(YEAR(НоеНед1+16)=CalendarYear,MONTH(НоеНед1+16)=11),НоеНед1+16,\"\"),IF(AND(YEAR(НоеНед1+23)=CalendarYear,MONTH(НоеНед1+23)=11),НоеНед1+23,\"\"))","v":"2019-11-19"},{"$f":"IF(DAY(НоеНед1)=1,IF(AND(YEAR(НоеНед1+17)=CalendarYear,MONTH(НоеНед1+17)=11),НоеНед1+17,\"\"),IF(AND(YEAR(НоеНед1+24)=CalendarYear,MONTH(НоеНед1+24)=11),НоеНед1+24,\"\"))","v":"2019-11-20"},{"$f":"IF(DAY(НоеНед1)=1,IF(AND(YEAR(НоеНед1+18)=CalendarYear,MONTH(НоеНед1+18)=11),НоеНед1+18,\"\"),IF(AND(YEAR(НоеНед1+25)=CalendarYear,MONTH(НоеНед1+25)=11),НоеНед1+25,\"\"))","v":"2019-11-21"},{"$f":"IF(DAY(НоеНед1)=1,IF(AND(YEAR(НоеНед1+19)=CalendarYear,MONTH(НоеНед1+19)=11),НоеНед1+19,\"\"),IF(AND(YEAR(НоеНед1+26)=CalendarYear,MONTH(НоеНед1+26)=11),НоеНед1+26,\"\"))","v":"2019-11-22"},{"$f":"IF(DAY(НоеНед1)=1,IF(AND(YEAR(НоеНед1+20)=CalendarYear,MONTH(НоеНед1+20)=11),НоеНед1+20,\"\"),IF(AND(YEAR(НоеНед1+27)=CalendarYear,MONTH(НоеНед1+27)=11),НоеНед1+27,\"\"))","v":"2019-11-23"},{"$f":"IF(DAY(НоеНед1)=1,IF(AND(YEAR(НоеНед1+21)=CalendarYear,MONTH(НоеНед1+21)=11),НоеНед1+21,\"\"),IF(AND(YEAR(НоеНед1+28)=CalendarYear,MONTH(НоеНед1+28)=11),НоеНед1+28,\"\"))","v":"2019-11-24"},null,{"$f":"IF(DAY(ДекНед1)=1,IF(AND(YEAR(ДекНед1+15)=CalendarYear,MONTH(ДекНед1+15)=12),ДекНед1+15,\"\"),IF(AND(YEAR(ДекНед1+22)=CalendarYear,MONTH(ДекНед1+22)=12),ДекНед1+22,\"\"))","v":"2019-12-16"},{"$f":"IF(DAY(ДекНед1)=1,IF(AND(YEAR(ДекНед1+16)=CalendarYear,MONTH(ДекНед1+16)=12),ДекНед1+16,\"\"),IF(AND(YEAR(ДекНед1+23)=CalendarYear,MONTH(ДекНед1+23)=12),ДекНед1+23,\"\"))","v":"2019-12-17"},{"$f":"IF(DAY(ДекНед1)=1,IF(AND(YEAR(ДекНед1+17)=CalendarYear,MONTH(ДекНед1+17)=12),ДекНед1+17,\"\"),IF(AND(YEAR(ДекНед1+24)=CalendarYear,MONTH(ДекНед1+24)=12),ДекНед1+24,\"\"))","v":"2019-12-18"},{"$f":"IF(DAY(ДекНед1)=1,IF(AND(YEAR(ДекНед1+18)=CalendarYear,MONTH(ДекНед1+18)=12),ДекНед1+18,\"\"),IF(AND(YEAR(ДекНед1+25)=CalendarYear,MONTH(ДекНед1+25)=12),ДекНед1+25,\"\"))","v":"2019-12-19"},{"$f":"IF(DAY(ДекНед1)=1,IF(AND(YEAR(ДекНед1+19)=CalendarYear,MONTH(ДекНед1+19)=12),ДекНед1+19,\"\"),IF(AND(YEAR(ДекНед1+26)=CalendarYear,MONTH(ДекНед1+26)=12),ДекНед1+26,\"\"))","v":"2019-12-20"},{"$f":"IF(DAY(ДекНед1)=1,IF(AND(YEAR(ДекНед1+20)=CalendarYear,MONTH(ДекНед1+20)=12),ДекНед1+20,\"\"),IF(AND(YEAR(ДекНед1+27)=CalendarYear,MONTH(ДекНед1+27)=12),ДекНед1+27,\"\"))","v":"2019-12-21"},{"$f":"IF(DAY(ДекНед1)=1,IF(AND(YEAR(ДекНед1+21)=CalendarYear,MONTH(ДекНед1+21)=12),ДекНед1+21,\"\"),IF(AND(YEAR(ДекНед1+28)=CalendarYear,MONTH(ДекНед1+28)=12),ДекНед1+28,\"\"))","v":"2019-12-22"}]
[null,null,{"$f":"IF(DAY(НоеНед1)=1,IF(AND(YEAR(НоеНед1+22)=CalendarYear,MONTH(НоеНед1+22)=11),НоеНед1+22,\"\"),IF(AND(YEAR(НоеНед1+29)=CalendarYear,MONTH(НоеНед1+29)=11),НоеНед1+29,\"\"))","v":"2019-11-25"},{"$f":"IF(DAY(НоеНед1)=1,IF(AND(YEAR(НоеНед1+23)=CalendarYear,MONTH(НоеНед1+23)=11),НоеНед1+23,\"\"),IF(AND(YEAR(НоеНед1+30)=CalendarYear,MONTH(НоеНед1+30)=11),НоеНед1+30,\"\"))","v":"2019-11-26"},{"$f":"IF(DAY(НоеНед1)=1,IF(AND(YEAR(НоеНед1+24)=CalendarYear,MONTH(НоеНед1+24)=11),НоеНед1+24,\"\"),IF(AND(YEAR(НоеНед1+31)=CalendarYear,MONTH(НоеНед1+31)=11),НоеНед1+31,\"\"))","v":"2019-11-27"},{"$f":"IF(DAY(НоеНед1)=1,IF(AND(YEAR(НоеНед1+25)=CalendarYear,MONTH(НоеНед1+25)=11),НоеНед1+25,\"\"),IF(AND(YEAR(НоеНед1+32)=CalendarYear,MONTH(НоеНед1+32)=11),НоеНед1+32,\"\"))","v":"2019-11-28"},{"$f":"IF(DAY(НоеНед1)=1,IF(AND(YEAR(НоеНед1+26)=CalendarYear,MONTH(НоеНед1+26)=11),НоеНед1+26,\"\"),IF(AND(YEAR(НоеНед1+33)=CalendarYear,MONTH(НоеНед1+33)=11),НоеНед1+33,\"\"))","v":"2019-11-29"},{"$f":"IF(DAY(НоеНед1)=1,IF(AND(YEAR(НоеНед1+27)=CalendarYear,MONTH(НоеНед1+27)=11),НоеНед1+27,\"\"),IF(AND(YEAR(НоеНед1+34)=CalendarYear,MONTH(НоеНед1+34)=11),НоеНед1+34,\"\"))","v":"2019-11-30"},{"$f":"IF(DAY(НоеНед1)=1,IF(AND(YEAR(НоеНед1+28)=CalendarYear,MONTH(НоеНед1+28)=11),НоеНед1+28,\"\"),IF(AND(YEAR(НоеНед1+35)=CalendarYear,MONTH(НоеНед1+35)=11),НоеНед1+35,\"\"))","v":""},null,{"$f":"IF(DAY(ДекНед1)=1,IF(AND(YEAR(ДекНед1+22)=CalendarYear,MONTH(ДекНед1+22)=12),ДекНед1+22,\"\"),IF(AND(YEAR(ДекНед1+29)=CalendarYear,MONTH(ДекНед1+29)=12),ДекНед1+29,\"\"))","v":"2019-12-23"},{"$f":"IF(DAY(ДекНед1)=1,IF(AND(YEAR(ДекНед1+23)=CalendarYear,MONTH(ДекНед1+23)=12),ДекНед1+23,\"\"),IF(AND(YEAR(ДекНед1+30)=CalendarYear,MONTH(ДекНед1+30)=12),ДекНед1+30,\"\"))","v":"2019-12-24"},{"$f":"IF(DAY(ДекНед1)=1,IF(AND(YEAR(ДекНед1+24)=CalendarYear,MONTH(ДекНед1+24)=12),ДекНед1+24,\"\"),IF(AND(YEAR(ДекНед1+31)=CalendarYear,MONTH(ДекНед1+31)=12),ДекНед1+31,\"\"))","v":"2019-12-25"},{"$f":"IF(DAY(ДекНед1)=1,IF(AND(YEAR(ДекНед1+25)=CalendarYear,MONTH(ДекНед1+25)=12),ДекНед1+25,\"\"),IF(AND(YEAR(ДекНед1+32)=CalendarYear,MONTH(ДекНед1+32)=12),ДекНед1+32,\"\"))","v":"2019-12-26"},{"$f":"IF(DAY(ДекНед1)=1,IF(AND(YEAR(ДекНед1+26)=CalendarYear,MONTH(ДекНед1+26)=12),ДекНед1+26,\"\"),IF(AND(YEAR(ДекНед1+33)=CalendarYear,MONTH(ДекНед1+33)=12),ДекНед1+33,\"\"))","v":"2019-12-27"},{"$f":"IF(DAY(ДекНед1)=1,IF(AND(YEAR(ДекНед1+27)=CalendarYear,MONTH(ДекНед1+27)=12),ДекНед1+27,\"\"),IF(AND(YEAR(ДекНед1+34)=CalendarYear,MONTH(ДекНед1+34)=12),ДекНед1+34,\"\"))","v":"2019-12-28"},{"$f":"IF(DAY(ДекНед1)=1,IF(AND(YEAR(ДекНед1+28)=CalendarYear,MONTH(ДекНед1+28)=12),ДекНед1+28,\"\"),IF(AND(YEAR(ДекНед1+35)=CalendarYear,MONTH(ДекНед1+35)=12),ДекНед1+35,\"\"))","v":"2019-12-29"}]
[null,null,{"$f":"IF(DAY(НоеНед1)=1,IF(AND(YEAR(НоеНед1+29)=CalendarYear,MONTH(НоеНед1+29)=11),НоеНед1+29,\"\"),IF(AND(YEAR(НоеНед1+36)=CalendarYear,MONTH(НоеНед1+36)=11),НоеНед1+36,\"\"))","v":""},{"$f":"IF(DAY(НоеНед1)=1,IF(AND(YEAR(НоеНед1+30)=CalendarYear,MONTH(НоеНед1+30)=11),НоеНед1+30,\"\"),IF(AND(YEAR(НоеНед1+37)=CalendarYear,MONTH(НоеНед1+37)=11),НоеНед1+37,\"\"))","v":""},{"$f":"IF(DAY(НоеНед1)=1,IF(AND(YEAR(НоеНед1+31)=CalendarYear,MONTH(НоеНед1+31)=11),НоеНед1+31,\"\"),IF(AND(YEAR(НоеНед1+38)=CalendarYear,MONTH(НоеНед1+38)=11),НоеНед1+38,\"\"))","v":""},{"$f":"IF(DAY(НоеНед1)=1,IF(AND(YEAR(НоеНед1+32)=CalendarYear,MONTH(НоеНед1+32)=11),НоеНед1+32,\"\"),IF(AND(YEAR(НоеНед1+39)=CalendarYear,MONTH(НоеНед1+39)=11),НоеНед1+39,\"\"))","v":""},{"$f":"IF(DAY(НоеНед1)=1,IF(AND(YEAR(НоеНед1+33)=CalendarYear,MONTH(НоеНед1+33)=11),НоеНед1+33,\"\"),IF(AND(YEAR(НоеНед1+40)=CalendarYear,MONTH(НоеНед1+40)=11),НоеНед1+40,\"\"))","v":""},{"$f":"IF(DAY(НоеНед1)=1,IF(AND(YEAR(НоеНед1+34)=CalendarYear,MONTH(НоеНед1+34)=11),НоеНед1+34,\"\"),IF(AND(YEAR(НоеНед1+41)=CalendarYear,MONTH(НоеНед1+41)=11),НоеНед1+41,\"\"))","v":""},{"$f":"IF(DAY(НоеНед1)=1,IF(AND(YEAR(НоеНед1+35)=CalendarYear,MONTH(НоеНед1+35)=11),НоеНед1+35,\"\"),IF(AND(YEAR(НоеНед1+42)=CalendarYear,MONTH(НоеНед1+42)=11),НоеНед1+42,\"\"))","v":""},null,{"$f":"IF(DAY(ДекНед1)=1,IF(AND(YEAR(ДекНед1+29)=CalendarYear,MONTH(ДекНед1+29)=12),ДекНед1+29,\"\"),IF(AND(YEAR(ДекНед1+36)=CalendarYear,MONTH(ДекНед1+36)=12),ДекНед1+36,\"\"))","v":"2019-12-30"},{"$f":"IF(DAY(ДекНед1)=1,IF(AND(YEAR(ДекНед1+30)=CalendarYear,MONTH(ДекНед1+30)=12),ДекНед1+30,\"\"),IF(AND(YEAR(ДекНед1+37)=CalendarYear,MONTH(ДекНед1+37)=12),ДекНед1+37,\"\"))","v":"2019-12-31"},{"$f":"IF(DAY(ДекНед1)=1,IF(AND(YEAR(ДекНед1+31)=CalendarYear,MONTH(ДекНед1+31)=12),ДекНед1+31,\"\"),IF(AND(YEAR(ДекНед1+38)=CalendarYear,MONTH(ДекНед1+38)=12),ДекНед1+38,\"\"))","v":""},{"$f":"IF(DAY(ДекНед1)=1,IF(AND(YEAR(ДекНед1+32)=CalendarYear,MONTH(ДекНед1+32)=12),ДекНед1+32,\"\"),IF(AND(YEAR(ДекНед1+39)=CalendarYear,MONTH(ДекНед1+39)=12),ДекНед1+39,\"\"))","v":""},{"$f":"IF(DAY(ДекНед1)=1,IF(AND(YEAR(ДекНед1+33)=CalendarYear,MONTH(ДекНед1+33)=12),ДекНед1+33,\"\"),IF(AND(YEAR(ДекНед1+40)=CalendarYear,MONTH(ДекНед1+40)=12),ДекНед1+40,\"\"))","v":""},{"$f":"IF(DAY(ДекНед1)=1,IF(AND(YEAR(ДекНед1+34)=CalendarYear,MONTH(ДекНед1+34)=12),ДекНед1+34,\"\"),IF(AND(YEAR(ДекНед1+41)=CalendarYear,MONTH(ДекНед1+41)=12),ДекНед1+41,\"\"))","v":""},{"$f":"IF(DAY(ДекНед1)=1,IF(AND(YEAR(ДекНед1+35)=CalendarYear,MONTH(ДекНед1+35)=12),ДекНед1+35,\"\"),IF(AND(YEAR(ДекНед1+42)=CalendarYear,MONTH(ДекНед1+42)=12),ДекНед1+42,\"\"))","v":""}]